Cogmind - Beta 13 @@@ ROGUE MODE // 2024.06.27 @ 17:33:04 Player: dp-fld Result: Destroyed by S-43 Plague with Heavy Machine Gun Performance ------------- Evolutions (9) 4500 Regions Visited (43) 8600 Robots Destroyed (316) 1580 Value Destroyed (9535) 9535 Prototype IDs (115) 2300 Alien Tech Used (12) 2400 Bonus (25813) 25813 TOTAL SCORE: 54728 Bonus ------- Triggered High Security 500 Triggered Max Security 3000 High Alert Combat Kills 1477 Follower Combat Kills 1902 Network Hubs Disabled 200 Aligned with FarCom 300 Met Zhirov 300 Met Warlord at Base 500 MAIN.C Attacked Warlord 500 Warlord Defense Kills 844 Built Enhanced Grunts 300 A7 Reached Mainframe 300 Used Core Reset Matrix 3000 Met Warlord at Research 2000 Destroyed MAIN.C Guards 500 Met MAIN.C 5000 Destroyed MAIN.C Shell 5000 Met Warlord at Command 2000 Friendly Fire -1810 Cogmind --------- Core Integrity 0/1600 Matter 211/300 Energy 99/100 System Corruption 0% Temperature Cool (-197) Movement Flying (29) Location -1/Command Parts ------- > --- POWER (2) -------- (None) > --- PROPULSION (8) --- Cooled Impulse Thruster Cooled Impulse Thruster Cooled Impulse Thruster > --- UTILITY (13) ----- Advanced Cryofiber Web Advanced Cooling System Advanced Coolant Injector Experimental Targeting Computer Spacefold Activator Microwarp Drive > --- WEAPON (2) ------- (None) > --- INVENTORY (7) ---- Mini Fusion Reactor Micro Antimatter Reactor Gravity Neutralizer Advanced Trap Extractor (0/8) Firepult Force Lance Peak State ------------ > --- POWER ------------ Mini Fusion Reactor Mini Fusion Reactor > --- PROPULSION ------- Cooled VTOL Module Cooled Nuclear Pulse Thruster Cooled Nuclear Pulse Thruster Electron Diverter Cooled Impulse Thruster Cooled Impulse Thruster Cooled Impulse Thruster Cooled Impulse Thruster > --- UTILITY ---------- Large Storage Unit Advanced Gravity Neutralizer Advanced Targeting Computer Experimental Targeting Computer Experimental Core Analyzer Experimental Core Analyzer Advanced Reaction Control System Centrium Light Armor Plating Improved Hacking Suite Experimental Hacking Suite Spacefold Activator Microwarp Drive > --- WEAPON ----------- Firepult > --- INVENTORY -------- Mini Fusion Reactor Micro Antimatter Reactor Cooled Impulse Thruster Advanced Cryofiber Web Advanced Cooling System Gravity Neutralizer Gravity Neutralizer Antimissile System Antimissile System Advanced Trap Extractor Helical Railgun Helical Railgun Helical Railgun Shock Maul [Rating: 219] Favorites ----------- Power Micro Nuclear Core Engine Heavy Ion Engine Power Core Micro Nuclear Core Reactor Mini Fusion Reactor Propulsion Improved VTOL Module Treads Advanced Treads Leg Aluminum Leg Flight Unit Improved VTOL Module Utility Advanced Hacking Suite Device Structural Scanner Storage Medium Storage Unit Processor Transport Network Coupler Hackware Advanced Hacking Suite Protection Improved Light Armor Plating Artifact Spacefold Activator Weapon Power Sword Energy Gun Precision Phase Gun Energy Cannon Ion Cannon Ballistic Gun Improved KE Penetrator Ballistic Cannon Light Cannon Launcher Mini Smartbomb Launcher Special Weapon Mining Laser Impact Weapon Shock Maul Slashing Weapon Power Sword Piercing Weapon CR-A16's Pointy Stick Special Melee Weapon Improved Datajack Build | -11 -10 -10 -9 -9 -9 -8 -8 -8 -7 -7 -7 -7 -7 -7 -6 -6 -6 -6 -6 -6 -6 -6 -5 -5 -5 -5 -5 -5 -4 -4 -4 -4 -4 -4 -4 -3 -3 -3 -3 -2 -2 -1 -1 ------- Run | Yrd Mat Min Mat Min Exi Min Mat Sto Fac Was Fac Low Low Zio Pro Fac Was Fac Ext Cet Arc Hub Fac Was Fac Upp Upp War Pro Fac Was Fac Upp Upp Zhi Pro Res Qua Sec Res Tes Acc Com Slots Evolved 18 | . . . 2 . . . 2 . 2 . . . . . . 2 . . . . . . 2 . . . . . . 2 . . . . . . 2 . . 2 . 2 . Power 1 | . . . . . . . . . . . . . . . . . . . . . . . 1 . . . . . . . . . . . . . . . . 1 . -1 . Propulsion 6 | . . . 1 . . . 1 . 1 . . . . . . 1 . . . . . . 1 . . . . . . . . . . . . . . . . . . 1 . Utility 11 | . . . 1 . . . 1 . 1 . . . . . . 1 . . . . . . . . . . . . . 2 . . . . . . 2 . . 1 . 2 . Weapon . | . . . . . . . . . . . . . . . . . . . . . . . . . . . . . . . . . . . . . . . . . . . . Parts Attached 689 | 8 15 2 43 6 2 3 36 13 25 . 46 10 2 18 . 25 . 19 13 2 . 8 28 . 24 6 3 17 6 44 1 11 9 1 8 2 19 3 11 111 12 30 47 Power 63 | 1 3 . 3 . . . 2 1 . . 5 1 . . . 5 . . 1 . . . 2 . 3 . . 3 . 1 . . . . 4 . 4 . . 21 . 1 2 Engine 8 | 1 2 . 3 . . . 1 . . . . . . . . . . . . . . . . . . . . . . . . . . . . . . . . 1 . . . Core 37 | . 1 . . . . . 1 1 . . 5 1 . . . 5 . . 1 . . . 2 . 3 . . 2 . 1 . . . . 3 . 2 . . 8 . . 1 Reactor 18 | . . . . . . . . . . . . . . . . . . . . . . . . . . . . 1 . . . . . . 1 . 2 . . 12 . 1 1 Propulsion 92 | 3 4 . 15 . . . 12 4 1 . 3 . . . . 3 . 4 . . . . 8 . 6 . . 2 . 10 . 2 . . . . 3 . 2 4 1 3 2 Treads 26 | 1 4 . 14 . . . 7 . . . . . . . . . . . . . . . . . . . . . . . . . . . . . . . . . . . . Leg 2 | 2 . . . . . . . . . . . . . . . . . . . . . . . . . . . . . . . . . . . . . . . . . . . Wheel . | . . . . . . . . . . . . . . . . . . . . . . . . . . . . . . . . . . . . . . . . . . . . Hover . | . . . . . . . . . . . . . . . . . . . . . . . . . . . . . . . . . . . . . . . . . . . . Flight 64 | . . . 1 . . . 5 4 1 . 3 . . . . 3 . 4 . . . . 8 . 6 . . 2 . 10 . 2 . . . . 3 . 2 4 1 3 2 Utility 365 | 2 5 1 11 3 . . 6 4 21 . 23 6 1 9 . 13 . 13 2 2 . 4 16 . 10 2 1 10 2 22 . 8 6 . 3 2 10 3 9 72 10 24 29 Device 207 | 1 3 . 3 1 . . 1 1 14 . 12 2 1 . . 6 . 12 . . . 3 14 . 8 1 1 6 1 17 . 5 5 . 2 2 7 . 1 42 3 12 20 Storage 15 | 1 1 . 2 . . . . 1 1 . . . . 3 . 2 . . . . . . . . . . . . . 1 . 1 . . . . . . . 2 . . . Processor 20 | . . . . . . . 1 2 . . 1 . . 4 . 1 . . . . . . . . . . . . . 1 . . 1 . . . . . . 6 . 3 . Hackware 10 | . . . . . . . . . . . 2 . . . . . . . . . . . . . . . . . . . . 2 . . . . 1 . . 2 1 2 . Protection 92 | . 1 1 6 2 . . 4 . 6 . 8 4 . 2 . 4 . 1 2 2 . 1 2 . 2 1 . 4 1 3 . . . . 1 . 2 2 5 15 3 3 4 Artifact 21 | . . . . . . . . . . . . . . . . . . . . . . . . . . . . . . . . . . . . . . 1 3 5 3 4 5 Weapon 169 | 2 3 1 14 3 2 3 16 4 3 . 15 3 1 9 . 4 . 2 10 . . 4 2 . 5 4 2 2 4 11 1 1 3 1 1 . 2 . . 14 1 2 14 Energy Gun 5 | . . . 1 . . . 1 . . . . . . . . . . . . . . . . . . . . . . . . . . . . . . . . 3 . . . Energy Cannon 51 | . . . 7 . . 2 8 1 . . 5 1 1 2 . 2 . 1 . . . . 1 . 1 2 1 . 2 6 . 1 1 1 . . . . . 1 . . 4 Ballistic Gun 27 | 2 1 . 1 . . . . . . . 2 1 . 2 . . . . 3 . . 1 . . . . . . . . . . . . . . . . . 4 1 1 8 Ballistic Cannon 7 | . 1 1 3 . . . 1 . . . 1 . . . . . . . . . . . . . . . . . . . . . . . . . . . . . . . . Launcher 36 | . 1 . 1 2 1 . 2 1 1 . 3 1 . 1 . . . 1 1 . . . . . 3 2 1 1 2 5 1 . 2 . 1 . 1 . . . . 1 . Special Weapon 1 | . . . 1 . . . . . . . . . . . . . . . . . . . . . . . . . . . . . . . . . . . . . . . . Impact Weapon 6 | . . . . . . . . . . . . . . . . . . . . . . . . . . . . . . . . . . . . . . . . 5 . . 1 Slashing Weapon 14 | . . . . 1 . 1 4 . . . . . . 2 . 1 . . 2 . . 1 1 . . . . . . . . . . . . . 1 . . . . . . Piercing Weapon 3 | . . . . . . . . . . . . . . 2 . . . . . . . . . . . . . . . . . . . . . . . . . . . . 1 Special Melee Weapon 19 | . . . . . 1 . . 2 2 . 4 . . . . 1 . . 4 . . 2 . . 1 . . 1 . . . . . . . . . . . 1 . . . Unidentified Prototypes 51 | . . . 4 . . . 2 1 . . 7 . . 4 . . . . . 1 . . . . . . . 4 . . . . . . 3 . 2 1 5 13 3 1 . Parts Lost 42 | . 1 1 1 . . . 1 . . . 2 . . 1 . . . . . . . 1 . . . . . . . . . 1 . . . . 2 . 4 . 3 1 23 Power 4 | . . . . . . . . . . . . . . . . . . . . . . . . . . . . . . . . . . . . . . . 1 . . . 3 Propulsion 14 | . 1 . . . . . 1 . . . 1 . . . . . . . . . . . . . . . . . . . . 1 . . . . 1 . 2 . . . 7 Utility 16 | . . . . . . . . . . . . . . 1 . . . . . . . . . . . . . . . . . . . . . . . . 1 . 3 . 11 Weapon 8 | . . 1 1 . . . . . . . 1 . . . . . . . . . . 1 . . . . . . . . . . . . . . 1 . . . . 1 2 Highest Loss Streak 11 | . 1 1 1 . . . 1 . . . 2 . . 1 . . . . . . . 1 . . . . . . . . . 1 . . . . 1 . 3 . 3 1 11 To Critical Strikes 1 | . . . . . . . 1 . . . . . . . . . . . . . . . . . . . . . . . . . . . . . . . . . . . . Average Slot Usage (%) 99 | . 99 99 99 100 100 100 100 99 100 100 98 100 100 99 100 97 100 99 100 100 100 98 98 100 100 100 100 99 100 99 100 98 100 100 99 100 99 100 98 97 99 98 93 Engine 3 | . 6 . 10 11 11 11 8 . . . . . . . . . . . . . . . . . . . . . . . . . . . . . . . . . . . . Core 5 | . 7 14 . . . . . 8 7 7 6 7 7 7 7 6 6 6 6 6 6 6 9 11 11 11 11 10 11 10 10 10 10 10 9 10 5 4 4 5 . . . Treads 11 | . 25 28 32 33 33 33 35 . . . . . . . . . . . . . . . . . . . . . . . . . . . . . . . . . . . . Flight 23 | . . . . . . . . 36 38 38 38 38 38 38 38 39 40 40 40 40 40 40 40 41 41 41 41 41 41 36 36 36 36 36 36 36 33 33 32 30 30 32 31 Device 10 | . 7 . 10 11 11 11 18 9 11 15 5 6 7 5 . 6 6 9 8 6 6 6 5 5 8 9 10 9 5 12 15 14 15 15 15 15 19 14 14 13 6 6 16 Storage 7 | . 14 14 11 11 11 11 9 9 7 7 7 7 7 6 7 6 6 6 6 6 6 6 5 5 5 5 5 5 5 5 5 5 5 5 5 5 4 4 4 4 4 4 4 Processor 2 | . . . . . . . . 18 8 7 6 . . 3 7 4 . . . . . . . . . . . . . 2 . . 5 5 5 5 4 4 4 11 15 23 13 Hackware 5 | . . . . . . . . . . . 7 15 15 15 15 13 13 13 13 13 13 13 11 11 11 11 11 11 11 10 10 10 10 10 10 10 10 14 9 8 9 11 7 Protection 8 | . 6 14 11 10 11 11 9 . 9 7 9 7 7 5 7 5 13 9 10 13 13 13 10 11 7 6 5 6 11 9 10 10 5 5 5 5 7 8 7 7 7 4 2 Energy Cannon 5 | . . . 11 11 11 18 16 . . . . 6 7 6 . 4 6 5 . . . . 3 5 4 4 2 . 1 4 . 4 3 3 . . . . . . . . . Ballistic Gun 3 | . 25 14 . . . . . . . . . . . . . . . . 5 6 6 2 1 . . . . . . . . . . . . . . . . 3 4 2 4 Ballistic Cannon 1 | . 2 7 8 . . . . . . . . . . . . . . . . . . . . . . . . . . . . . . . . . . . . . . . . Launcher 1 | . . 5 . 10 . 3 . 2 1 . . . . . 7 . . . . . . . . . . . 2 4 3 . 5 . 1 1 5 5 4 4 4 . . 1 . Slashing Weapon 2 | . . . . . . . . 9 7 7 7 7 7 6 . 2 6 6 2 . . 3 4 5 5 5 5 5 5 5 5 5 5 5 5 5 3 4 4 1 . . . Special Melee Weapon 1 | . . . . . 10 . . 6 5 7 5 . . . . 1 . . 3 6 6 5 . . . . . . . . . . . . . . . . . . . . . Naked Turns . | . . . . . . . . . . . . . . . . . . . . . . . . . . . . . . . . . . . . . . . . . . . . Heaviest Build 118 | 12 53 52 105 105 104 106 110 20 25 25 25 25 25 25 22 35 29 30 34 29 29 29 35 35 35 32 32 44 33 44 44 45 44 43 43 42 53 49 51 59 63 58 118 Greatest Support 89 | 20 40 40 66 66 66 66 89 20 25 25 25 25 25 25 25 36 30 31 30 30 30 30 41 41 39 39 39 42 42 44 44 46 43 43 43 43 59 69 58 59 62 69 82 Greatest Overweight (x) 6 | . 1 1 1 1 1 1 4 . . . . . . . . 1 . . 1 . . . . . . . . 1 . . . . 1 . 6 . . . . 1 1 1 3 Average Overweight (x) . | . . 1 . 1 1 1 1 . . . . . . . . . . . . . . . . . . . . . . . . . . . . . . . . . . . . Largest Inventory Capacity 25 | 8 20 20 25 25 25 25 25 10 10 10 10 10 10 10 10 15 10 10 10 10 10 10 10 10 10 10 10 10 10 15 15 15 15 15 15 15 15 15 17 17 17 17 17 Average Capacity 15 | 6 19 20 21 25 25 25 25 10 10 10 10 10 10 9 10 12 10 10 10 10 10 10 10 10 10 10 10 10 10 12 15 15 15 15 15 15 15 15 16 17 17 17 16 Most Carried 25 | 6 20 20 25 25 25 25 25 10 10 10 10 10 10 10 10 15 10 10 10 10 10 10 10 10 10 10 10 10 10 15 15 15 15 15 15 15 15 15 17 17 17 17 17 Average Carried 15 | 3 17 19 21 24 24 25 24 9 9 9 9 10 10 9 10 12 10 9 10 10 10 10 9 10 9 10 10 9 10 12 15 14 14 15 14 15 14 15 15 16 16 15 13 Final Capacity 25 | 8 20 20 25 25 25 25 25 10 10 10 10 10 10 10 10 10 10 10 10 10 10 10 10 10 10 10 10 10 10 15 15 15 15 15 15 15 15 15 17 17 17 17 7 Final Carried 25 | 6 20 20 25 24 25 25 12 10 10 10 10 10 10 10 10 10 10 10 10 10 10 10 10 10 10 10 10 10 10 15 15 14 15 15 15 15 15 15 17 17 15 17 7 Class Distribution -------------------- 36% | Mutant 32% | Hacker-Sprinter 6% | Sprinter 5% | Alien-Scout 3% | Alien-Sprinter Dominant Class ---------------- Mutant | -10/Materials Mutant | -10/Mines Mutant | -9/Materials Mutant | -9/Mines Mutant | -9/Exiles Mutant | -8/Mines Mutant | -8/Materials Commander-Scout | -8/Storage Scout | -7/Factory Sprinter | -7/Waste Sprinter | -7/Factory Hacker-Sprinter | -7/Lower Caves Hacker-Sprinter | -7/Lower Caves Hacker-Sprinter | -7/Zion Hacker-Sprinter | -6/Proximity Caves Hacker-Sprinter | -6/Factory Hacker-Sprinter | -6/Waste Hacker-Sprinter | -6/Factory Commander-Sprinter | -6/Extension Hacker-Sprinter | -6/Cetus Hacker-Sprinter | -6/Archives Hacker-Sprinter | -6/Hub_04(d) Hacker-Sprinter | -5/Factory Hacker-Sprinter | -5/Waste Hacker-Sprinter | -5/Factory Hacker-Sprinter | -5/Upper Caves Hacker-Sprinter | -5/Upper Caves Hacker-Mutant | -5/Warlord Hacker-Sprinter | -4/Proximity Caves Hacker-Sprinter | -4/Factory Hacker-Sprinter | -4/Waste Hacker-Sprinter | -4/Factory Hacker-Sprinter | -4/Upper Caves Hacker-Sprinter | -4/Upper Caves Hacker-Sprinter | -4/Zhirov Machinist-Sprinter | -3/Proximity Caves Machinist-Scout | -3/Research Hacker-Scout | -3/Quarantine Machinist-Scout | -3/Section 7 Alien-Scout | -2/Research Alien-Scout | -2/Testing Alien-Scout | -1/Access Alien-Sprinter | -1/Command Resources | -11 -10 -10 -9 -9 -9 -8 -8 -8 -7 -7 -7 -7 -7 -7 -6 -6 -6 -6 -6 -6 -6 -6 -5 -5 -5 -5 -5 -5 -4 -4 -4 -4 -4 -4 -4 -3 -3 -3 -3 -2 -2 -1 -1 ----------- Run | Yrd Mat Min Mat Min Exi Min Mat Sto Fac Was Fac Low Low Zio Pro Fac Was Fac Ext Cet Arc Hub Fac Was Fac Upp Upp War Pro Fac Was Fac Upp Upp Zhi Pro Res Qua Sec Res Tes Acc Com Matter Collected 10826 | 140 439 173 812 134 . 50 268 230 100 195 469 112 17 47 63 407 . 90 591 76 20 77 205 . 355 185 17 698 66 1405 16 51 280 80 98 20 284 . 221 1494 45 285 511 Remotely 60 | . . . . . . . . . . . . . . . . . . . . . . . . . . . . . . . . . . . . . . . . . . 60 . Salvage Created 15036 | 19 459 109 1634 123 . 131 1164 317 100 . 566 85 . . 16 541 . 95 435 . . 44 205 . 512 221 61 241 34 2637 28 127 308 16 272 42 413 . 68 1285 . 744 1984 Parts 675 | 3 30 12 105 5 . 3 67 16 5 . 29 3 . . 2 18 . 16 35 . . 3 27 . 35 4 6 8 7 103 4 7 9 1 2 3 12 . 6 43 . 14 32 Haulers Intercepted 32 | . 2 . 6 . . . 1 5 . . 1 . . . . . . . . . . . . . . . . . . 9 . . . . . . 1 . . 2 . 5 . Recyclers Shooed 12 | . 2 1 . . . . 1 . . . 1 . . . . . . . . . . . . . . . . . . 6 . . . . . . . . . . . . 1 Parts Field Recycled . | . . . . . . . . . . . . . . . . . . . . . . . . . . . . . . . . . . . . . . . . . . . . Retrieved Matter . | . . . . . . . . . . . . . . . . . . . . . . . . . . . . . . . . . . . . . . . . . . . . Parts Self-Destructed 24 | . . . . . . . . . . . . 3 . . 2 . . . . . . . . . . 3 4 . 4 . . . 5 . 1 2 . . . . . . . Prevented 9 | . . . . . . . . . . . . . . . . . . . . . . . . . . . . . . . . . 9 . . . . . . . . . . Kills | -11 -10 -10 -9 -9 -9 -8 -8 -8 -7 -7 -7 -7 -7 -7 -6 -6 -6 -6 -6 -6 -6 -6 -5 -5 -5 -5 -5 -5 -4 -4 -4 -4 -4 -4 -4 -3 -3 -3 -3 -2 -2 -1 -1 ------- Run | Yrd Mat Min Mat Min Exi Min Mat Sto Fac Was Fac Low Low Zio Pro Fac Was Fac Ext Cet Arc Hub Fac Was Fac Upp Upp War Pro Fac Was Fac Upp Upp Zhi Pro Res Qua Sec Res Tes Acc Com Combat Hostiles Destroyed 168 | . 10 9 33 4 . 3 21 . 2 . 1 1 . . 3 1 . 3 8 . . . . . 5 1 6 7 3 6 2 2 4 2 . 2 2 . 4 12 . 6 5 Melee 4 | . . . . . . . . . 1 . . . . . . 1 . . . . . . . . . . . . 2 . . . . . . . . . . . . . . Guns 31 | . 10 . 1 . . . . . . . . 1 . . . . . . 5 . . . . . . . . . . . . . . . . . . . . 12 . . 2 Cannons 50 | . . 4 27 1 . 1 16 . . . 1 . . . . . . . . . . . . . . . . . . . . . . . . . . . . . . . . AOE 76 | . . 5 4 3 . . 4 . 1 . . . . . 3 . . 3 3 . . . . . 5 1 6 7 1 6 2 2 4 2 . 2 2 . 4 . . 4 2 Classes Destroyed 21 | 1 4 2 4 . . 1 1 . 1 . . 1 . . . . . . 1 . . . . . . . . 2 1 . . . . . . . . . . 2 . . . Worker 17 | . . 1 2 . . . 3 . . . 2 . . . . 2 . 1 . . . 2 . . . . . . . 4 . . . . . . . . . . . . . Builder 20 | . . . 1 . . . . . . . 2 . . . . . . 1 3 . . . 3 . 2 . . . . 8 . . . . . . . . . . . . . Tunneler 7 | 1 . 1 . 1 . . . . . . . . . . . . . . . . . . . . . . . . . 1 . 2 . . . . . . . . . 1 . Hauler 32 | . 2 . 6 . . . 1 5 . . 1 . . . . . . . . . . . . . . . . . . 9 . . . . . . 1 . . 2 . 5 . Recycler 29 | . . . 4 1 . . 1 1 . . 4 . . . . 3 . . . . . . . . 2 . . . . 10 . . . . . . 2 . . . . . 1 Minesweeper 3 | . . . . . . . . . . . . 1 . . . . . . . . . . . . . . . . 1 . . . 1 . . . . . . . . . . Operator 5 | . . . 1 . . . 1 . . . . . . . . . . 1 . . . . 1 . . . . . . . . . . . . . . . . . . 1 . Drone 3 | . . . . . . . . . . . . . . . . . . . . . . . . . . . . . 2 1 . . . . . . . . . . . . . Watcher 35 | . 1 . 3 . . . 5 . 1 . 4 . . . . 2 . . . . . . 5 . 5 . . . . 5 . 1 . . . . 1 . . 1 . . 1 Swarmer 69 | . 3 6 10 4 . . 7 . 1 . . . . . 3 . . 3 3 . . . . . 5 . 6 . . . 2 . 4 2 . 2 . . 4 . . 4 . Saboteur 1 | . . . . . . . . . . . . . . . . . . . . . . . . . . . . 1 . . . . . . . . . . . . . . . Grunt 45 | . 7 2 14 . . 2 4 . . . . . . . . . . . 2 . . . . . . 1 . 3 1 . . . . . . . 1 . . 4 . 2 2 Duelist 4 | . . . . . . 1 1 . . . . . . . . . . . . . . . . . . . . 1 . . . . . . . . 1 . . . . . . Sentry 20 | . . . 9 . . . 7 . . . . . . . . . . . 2 . . . . . . . . . . . . . . . . . . . . 1 . . 1 Demolisher 1 | . . . . . . . . . . . . . . . . . . . . . . . . . . . . . . . . . . . . . . . . 1 . . . Hunter 4 | . . . . . . . 2 . . . . . . . . . . . . . . . . . . . . . . . . 2 . . . . . . . . . . . Programmer 11 | . . . . . . . . . 1 . 1 1 . . . 1 . . . . . . . . . . . 1 . 5 . . . . . . . . . 1 . . . Behemoth 2 | . . . . . . . . . . . . . . . . . . . 1 . . . . . . . . . . . . . . . . . . . . 1 . . . M Guard 1 | . . . . . . . . . . . . . . . . . . . . . . . . . . . . . . . . . . . . . . . . . . . 1 Striker 5 | . . . . . . . . . . . . . . . . . . . . . . . . . . . . 1 . . . . . . . . . . . 4 . . . Decomposer 1 | . . . . . . . . . . . . . . . . . . . . . . . . . . . . . 1 . . . . . . . . . . . . . . Packrat 6 | . . . . . . . . . . . . . . . . . . . . . . . . . . 3 . . . . . . 3 . . . . . . . . . . Assembled 1 | . . 1 . . . . . . . . . . . . . . . . . . . . . . . . . . . . . . . . . . . . . . . . . Thug 1 | . . . . . . . . . . . . . . . . . . . 1 . . . . . . . . . . . . . . . . . . . . . . . . Hydra 1 | . . . . . . . . . . . . . . . . . . . . . . . . . . . . . . . . . . . . . . . . 1 . . . Best Kill Streak 6 | 1 3 6 5 5 . 3 5 3 1 . 3 1 . . 3 2 . 4 6 . . 2 2 . 5 1 6 2 4 4 2 3 4 2 . 2 2 . 4 3 . 4 2 Combat Bots Only 6 | . 3 5 5 4 . 3 4 . 1 . 1 1 . . 3 1 . 3 3 . . . . . 5 1 6 2 2 2 2 1 4 2 . 2 2 . 4 3 . 3 2 Max Kills in Single Turn 5 | 1 1 2 4 2 . 1 5 1 1 . 2 1 . . 1 1 . 1 2 . . 2 1 . 3 1 3 2 1 2 1 3 2 1 . 2 1 . 2 1 . 2 2 Gunslinging . | . . . . . . . . . . . . . . . . . . . . . . . . . . . . . . . . . . . . . . . . . . . . Exploded 4 | . . 2 2 2 . . 4 . 1 . . . . . 1 . . 1 2 . . . . . 3 1 3 2 1 2 1 1 2 1 . 2 1 . 2 . . 2 1 Melee 1 | . . . . . . . . . 1 . . . . . . 1 . . . . . . . . . . . . 1 . . . . . . . . . . . . . . Uniques/NPCs Destroyed 1 | . . . . . . . . . . . . . . . . . . . . . . . . . . . . . . . . . . . . . . . . . . . 1 MAIN.C Shell (-1/Command) Combat | -11 -10 -10 -9 -9 -9 -8 -8 -8 -7 -7 -7 -7 -7 -7 -6 -6 -6 -6 -6 -6 -6 -6 -5 -5 -5 -5 -5 -5 -4 -4 -4 -4 -4 -4 -4 -3 -3 -3 -3 -2 -2 -1 -1 -------- Run | Yrd Mat Min Mat Min Exi Min Mat Sto Fac Was Fac Low Low Zio Pro Fac Was Fac Ext Cet Arc Hub Fac Was Fac Upp Upp War Pro Fac Was Fac Upp Upp Zhi Pro Res Qua Sec Res Tes Acc Com Hostile Shots Fired 985 | . 58 59 120 12 . 13 88 2 37 . 28 8 1 . 11 16 1 19 33 17 2 9 1 . . 2 6 6 13 33 . 18 25 3 . . 42 2 54 20 22 34 170 Missed 432 | . 14 15 33 4 . 4 33 1 28 . 15 4 . . 4 8 1 7 20 7 1 6 1 . . 2 4 2 5 24 . 7 12 1 . . 27 . 27 12 10 19 74 Intercepted 5 | . . . . . . . . . . . . . . . . . . . . . . . . . . . . . . . . . . . . . . . . . . . 5 Damage Taken 13554 | . 543 524 1010 59 . 159 855 15 184 . 401 60 15 . 115 103 . 170 111 214 21 126 . . . . 25 100 175 152 . 218 198 34 . . 373 84 1172 541 617 659 4521 Core 4148 | . 130 88 113 9 . 17 102 15 42 . 209 . 15 . 29 . . 46 23 85 21 . . . . . . 40 27 44 . 20 69 20 . . 65 . 588 362 349 248 1372 Absorbed by Shields 152 | . . . . . . . . . . . . . . . . . . . 75 38 . . . . . . . 19 . . . . . . . . 20 . . . . . . Redirected to Shielding 520 | . . . . . . . . . . . 30 10 . . . . . . 4 . . 42 . . . . 10 18 14 18 . 15 . 12 . . 85 . 110 93 59 . . Regen/Repaired (Parts) 1351 | . 45 . 328 . . . 79 . . . 71 . . 165 . 123 . . . . . . 154 . . . . 4 . 142 . . . . . . 130 . . 110 . . . Core Remaining (%) 66 | 100 . 12 . . . 65 . 78 . . . . . . 57 . . . . . . 79 . . . . . . 93 . . . . . . 86 . . 42 . 50 . . Volleys Fired 675 | 1 40 24 107 4 . 8 67 . 1 . 7 3 . . 4 1 . 16 54 14 5 3 11 . 3 5 4 17 10 54 2 5 15 4 . 1 8 . 3 95 . 7 72 Largest 2 | 2 2 2 2 2 . 2 2 . 1 . 1 1 . . 1 1 . 1 2 1 1 1 1 . 1 1 1 1 1 1 1 1 1 1 . 1 1 . 1 2 . 1 2 Hottest 250 | 40 40 55 136 93 . 120 120 . 30 . 90 33 . . 30 90 . 90 66 33 33 33 90 . 80 90 80 80 90 90 80 90 90 90 . 80 80 . 80 94 . 80 250 Shots Fired 1006 | 2 80 45 206 6 . 15 130 . 1 . 7 3 . . 4 1 . 16 61 14 5 3 11 . 3 5 4 17 10 54 2 6 15 4 . 1 8 . 3 141 . 7 116 Gun 439 | 2 80 23 8 . . . . . . . . 3 . . . . . . 55 14 5 3 . . . . . . . . . . . . . . . . . 141 . 2 103 Cannon 438 | . . 15 188 4 . 15 129 . . . 3 . . . . 1 . 12 . . . . 11 . . 2 . . 1 25 . 6 11 2 . . . . . . . . 13 Launcher 126 | . . 7 7 2 . . 1 . 1 . 4 . . . 4 . . 4 6 . . . . . 3 3 4 17 9 29 2 . 4 2 . 1 8 . 3 . . 5 . Special 3 | . . . 3 . . . . . . . . . . . . . . . . . . . . . . . . . . . . . . . . . . . . . . . . Kinetic 516 | 2 80 38 72 . . . . . . . . 3 . . . . . . 55 14 5 3 . . . . . . . . . . . . . . . . . 139 . 2 103 Thermal 364 | . . . 127 4 . 15 129 . . . 3 . . . . 1 . 12 . . . . 11 . . 2 . . 1 25 . 6 11 2 . . . . . 2 . . 13 Explosive 126 | . . 7 7 2 . . 1 . 1 . 4 . . . 4 . . 4 6 . . . . . 3 3 4 17 9 29 2 . 4 2 . 1 8 . 3 . . 5 . Electromagnetic . | . . . . . . . . . . . . . . . . . . . . . . . . . . . . . . . . . . . . . . . . . . . . Robot Hit Streak 38 | 1 10 7 16 5 . 11 17 . . . 2 5 . . . . . 1 9 4 3 4 . . . . . 3 5 7 . 8 . . . . 9 . . 20 . 4 38 Robot Miss Streak 4 | . 2 4 4 1 . 1 4 . 1 . . . . . 1 . . 2 3 3 2 . . . . 1 . . . . . . . . . . . . . 3 . . 2 Penetration Max 1 | . . . . . . . . . . . . . . . . . . . 1 . . . . . . . . . . . . . . . . . . . . 1 . . 1 Secondary Targets 2 | . 1 . . . . . . . . . . . . . . . . . . . . . . . . . . . . . . . . . . . . . . . . . 1 Max Gunslinging Chain 1 | . 1 . . . . . . . . . . . . . . . . . . . . . . . . . . . . . . . . . . . . . . . . . 1 Shots Hit Robots 867 | 1 53 29 131 6 4 11 89 12 14 . 17 5 . . . 16 . 6 63 9 5 2 11 . 14 3 . 13 8 56 . 3 4 . 5 . 14 . 2 103 . 14 144 Core Hits 508 | 1 25 18 61 6 . 3 36 5 5 . 14 1 . . 6 5 . 10 27 3 . 8 7 . 9 4 5 31 6 41 2 4 6 1 3 2 15 . 7 31 . 12 88 Critical Kills 10 | . . . 1 . . 1 . . . . . . . . . . . . 3 . . . . . . . . . . . . . . . . . . . . 2 . 2 1 Critical Parts Destroyed 13 | . . . . . . . . . . . . . . . . . . . 3 . . . . . . . . . . . . . . . . . . . . 2 . 6 2 Critical Strikes 36 | . . . 1 . . 1 . 2 . . . . . . . . . . 8 . . 1 . . . . . . . 2 . . . . . . 3 . . 5 . 8 5 Meltdown 2 | . . . 1 . . 1 . . . . . . . . . . . . . . . . . . . . . . . . . . . . . . . . . . . . . Destroy 17 | . . . . . . . . . . . . . . . . . . . 8 . . 1 . . . . . . . . . . . . . . . . . 4 . 1 3 Smash 7 | . . . . . . . . . . . . . . . . . . . . . . . . . . . . . . . . . . . . . . . . . . 7 . Sever 8 | . . . . . . . . 2 . . . . . . . . . . . . . . . . . . . . . 2 . . . . . . 3 . . 1 . . . Impale 2 | . . . . . . . . . . . . . . . . . . . . . . . . . . . . . . . . . . . . . . . . . . . 2 Melee Attacks 1000 | . . . . 2 4 1 5 30 62 . 64 2 1 1 2 47 . 37 34 . 2 2 81 . 59 6 . 21 11 220 . 26 10 3 5 4 47 4 30 74 10 28 65 Impact 88 | . . . . . . . . . . . . . . . . . . . . . . . . . . . . . . . . . . . . . . . . 23 10 28 27 Slashing 795 | . . . . 2 . 1 5 29 61 . 62 2 1 1 . 15 . 37 9 . . 2 81 . 59 6 . 11 11 220 . 26 10 3 5 4 47 4 30 51 . . . Piercing 70 | . . . . . . . . . . . . . . . 2 30 . . . . . . . . . . . . . . . . . . . . . . . . . . 38 Sneak Attacks 138 | . . . . 1 4 . . 7 2 . 9 1 . . . 9 . 2 24 . 2 . 3 . 6 3 . 10 . 34 . . 4 . . . 3 . 1 3 . 5 5 Combat Hostiles 6 | . . . . . . . . . . . . . . . . 1 . . 1 . . . . . . . . . . . . . . . . . . . . . . . 4 Follow-up Attacks . | . . . . . . . . . . . . . . . . . . . . . . . . . . . . . . . . . . . . . . . . . . . . Damage Inflicted 42686 | 10 579 641 3358 325 . 313 2407 824 685 . 1159 229 . . 273 863 . 558 1330 238 72 561 745 . 1454 476 465 1816 866 5958 234 878 793 186 425 159 1449 . 629 2409 . 1656 7663 Guns 6110 | 10 571 115 75 . . . . . . . . 87 . . . . . . 792 238 72 26 . . . . . . . . . . . . . . . . . 1946 . 26 2152 Cannons 6150 | . . 194 2606 74 . 299 2061 . . . 68 . . . . . . . . . . . . . . . . . 27 . . . . . . . . . . . . . 821 Explosions 12926 | . . 303 656 160 . . 313 . 41 . 219 . . . 273 . . 236 463 . . 490 . . 495 228 465 1816 522 1725 234 768 402 186 . 159 708 . 496 . . 541 1027 Melee 17393 | . . . . 89 . . . 824 644 . 872 142 . . . 863 . 322 75 . . 45 745 . 959 248 . . 317 4233 . 110 391 . 425 . 741 . 133 463 . 1089 3663 Ramming 107 | . 8 29 21 2 . 14 33 . . . . . . . . . . . . . . . . . . . . . . . . . . . . . . . . . . . . Kinetic 7083 | 10 571 309 854 . . . . . . . . 87 . . . . . . 792 238 72 26 . . . . . . . . . . . . . . . . . 1946 . 26 2152 Thermal 7110 | . . . 1827 74 . 299 2061 . . . 68 . . . . . . . . . . . . . . . . . 27 252 . 654 . . . . . . . . . . 1848 Explosive 10503 | . . 303 656 160 . . 313 . 41 . 219 . . . 273 . . 236 463 . . . . . 495 228 465 1816 522 1473 234 114 402 186 . 159 708 . 496 . . 541 . Electromagnetic 490 | . . . . . . . . . . . . . . . . . . . . . . 490 . . . . . . . . . . . . . . . . . . . . . Impact 1637 | . . . . . . . . . . . . . . . . . . . . . . . . . . . . . . . . . . . . . . . . 150 . 1089 398 Slashing 11836 | . . . . 89 . . . 824 644 . 872 142 . . . 208 . 322 75 . . 45 745 . 959 248 . . 317 4233 . 110 391 . 425 . 741 . 133 313 . . . Piercing 3920 | . . . . . . . . . . . . . . . . 655 . . . . . . . . . . . . . . . . . . . . . . . . . . 3265 Highest Corruption 10 | . . . 4 4 . . . . 1 1 1 2 2 2 . . 10 10 . . . 3 . . . . . . . 1 1 1 1 1 1 1 2 2 2 . . . . Average Corruption 2 | . . . 4 3 . . . . 1 1 1 1 2 2 . . 10 8 . . . 3 . . . . . . . 1 1 1 1 1 1 1 1 2 2 . . . . Corruption Purged 14 | . . . . 4 . . . . . . . . . . . . . 10 . . . . . . . . . . . . . . . . . . . . . . . . . Corruption Blocked 9 | . . . . . . . . . . . . . . . . . . . . . . . . . . . . . . . . . . . . . . . . 2 . . 7 Effects 108 | . . . 31 9 . . . . 3 4 11 2 . . . . 1 27 . . . 1 . . . . . . . 7 1 6 1 . 1 1 . 1 1 . . . . Message Errors 27 | . . . 5 2 . . . . . 3 4 . . . . . . 8 . . . . . . . . . . . 2 . 1 1 . . . . . 1 . . . . Matter Fused 26 | . . . 7 4 . . . . . . 2 . . . . . 1 6 . . . . . . . . . . . 2 . 2 . . 1 . . 1 . . . . . Heat Flow Errors 16 | . . . 6 . . . . . . . 1 2 . . . . . 4 . . . 1 . . . . . . . 1 . 1 . . . . . . . . . . . Energy Discharges 18 | . . . 7 3 . . . . 1 1 2 . . . . . . 4 . . . . . . . . . . . . . . . . . . . . . . . . . Parts Fused 1 | . . . . . . . . . . . . . . . . . . 1 . . . . . . . . . . . . . . . . . . . . . . . . . Data Loss (minor) 11 | . . . 4 . . . . . 1 . . . . . . . . 3 . . . . . . . . . . . 2 1 . . . . . . . . . . . . Data Loss (major) 6 | . . . 2 . . . . . 1 . . . . . . . . 1 . . . . . . . . . . . . . 1 . . . 1 . . . . . . . Misfires 1 | . . . . . . . . . . . . . . . . . . . . . . . . . . . . . . . . 1 . . . . . . . . . . . Alerts 2 | . . . . . . . . . . . 2 . . . . . . . . . . . . . . . . . . . . . . . . . . . . . . . . Overload Shots . | . . . . . . . . . . . . . . . . . . . . . . . . . . . . . . . . . . . . . . . . . . . . Overflow Damage 4671 | . . 15 25 16 . 5 45 109 95 . 131 92 . . 12 173 . 132 45 . . 12 115 . 292 208 68 15 133 1190 . 155 110 56 152 . 94 . 39 153 . 657 327 Projectiles 37 | . . . 5 4 . 5 23 . . . . . . . . . . . . . . . . . . . . . . . . . . . . . . . . . . . . Explosions 753 | . . 15 20 12 . . 22 . . . . . . . 12 . . 3 . . . 12 . . 59 . 68 15 26 219 . 133 38 56 . . 1 . 15 . . 27 . Melee 3881 | . . . . . . . . 109 95 . 131 92 . . . 173 . 129 45 . . . 115 . 233 208 . . 107 971 . 22 72 . 152 . 93 . 24 153 . 630 327 Knockbacks 13 | . . 3 6 . . . . . . . . . . . . . . . . . . . . . . . . . . . . . . . . . . . . . . . 4 Impact 5 | . . 1 . . . . . . . . . . . . . . . . . . . . . . . . . . . . . . . . . . . . . . . . 4 Kinetic 7 | . . 2 5 . . . . . . . . . . . . . . . . . . . . . . . . . . . . . . . . . . . . . . . . Secondary 1 | . . . 1 . . . . . . . . . . . . . . . . . . . . . . . . . . . . . . . . . . . . . . . . Self-Inflicted Damage 382 | . . 82 . . . . 7 . . . . . . . . . . 22 . . . 98 . . . . . . 8 . . . . . . . . . 73 . . 41 51 Shots 18 | . . 3 . . . . 1 . . . . . . . . . . 1 . . . 1 . . . . . . 1 . . . . . . . . . 1 . . 1 9 Rammed 14 | . 1 4 3 1 . 2 3 . . . . . . . . . . . . . . . . . . . . . . . . . . . . . . . . . . . . Targets Rammed 16 | . 2 5 3 1 . 2 3 . . . . . . . . . . . . . . . . . . . . . . . . . . . . . . . . . . . . Kicked . | . . . . . . . . . . . . . . . . . . . . . . . . . . . . . . . . . . . . . . . . . . . . Crushed 2 | . 1 1 . . . . . . . . . . . . . . . . . . . . . . . . . . . . . . . . . . . . . . . . . Highest Temperature 354 | . 12 135 286 . . 30 30 4 50 125 144 121 10 354 84 200 128 328 226 80 32 170 201 289 193 8 . 24 55 251 49 241 13 2 47 3 18 58 23 131 173 173 199 Average Temperature 39 | . 7 43 62 . . 20 9 4 11 68 14 37 2 25 26 47 85 76 57 25 13 74 54 116 69 5 . 8 17 18 18 30 1 1 9 1 9 35 17 35 53 41 56 Received Heat Transfer 1933 | . 291 99 345 . . 72 351 9 33 . 27 9 9 . 18 21 . . 30 18 . . . . . . . 13 21 . . 78 33 . . . 51 9 27 9 63 45 252 Effects 3 | . . . 2 . . . . . . . . . . 1 . . . . . . . . . . . . . . . . . . . . . . . . . . . . . Energy Bleed 2 | . . . 1 . . . . . . . . . . 1 . . . . . . . . . . . . . . . . . . . . . . . . . . . . . Interference 1 | . . . 1 . . . . . . . . . . . . . . . . . . . . . . . . . . . . . . . . . . . . . . . . Siege Activations . | . . . . . . . . . . . . . . . . . . . . . . . . . . . . . . . . . . . . . . . . . . . . Robots Corrupted . | . . . . . . . . . . . . . . . . . . . . . . . . . . . . . . . . . . . . . . . . . . . . Combat Hostiles . | . . . . . . . . . . . . . . . . . . . . . . . . . . . . . . . . . . . . . . . . . . . . Parts Fried 8 | . . . . . . . . . . . . . . . . . . . . . . . . . . . . . . . . . . . . . . . . 1 . 7 . Impact Corruptions 13 | . . . . . . . . . . . . . . . . . . . . . . . . . . . . . . . . . . . . . . . . 2 . 9 2 Robots Melted 5 | . . . 1 . . 2 1 . . . . . . . . . . . . . . . . . . . . . . . . . . . . . . . . . . . 1 Combat Hostiles 5 | . . . 1 . . 2 1 . . . . . . . . . . . . . . . . . . . . . . . . . . . . . . . . . . . 1 Parts Melted 20 | . . . 5 . . 3 9 . . . . . . . . . . . . . . . . . . . . . . . . 1 . . . . . . . . . . 2 Heat Transferred 10701 | . . . 3182 111 . 481 3256 . . . 74 . . . . . . . . . . . . . . . . . 37 150 . 350 . . . . . . . . . . 3060 Parts Sabotaged . | . . . . . . . . . . . . . . . . . . . . . . . . . . . . . . . . . . . . . . . . . . . . Parts Stolen . | . . . . . . . . . . . . . . . . . . . . . . . . . . . . . . . . . . . . . . . . . . . . Parts Stripped . | . . . . . . . . . . . . . . . . . . . . . . . . . . . . . . . . . . . . . . . . . . . . Power Chain Reactions . | . . . . . . . . . . . . . . . . . . . . . . . . . . . . . . . . . . . . . . . . . . . . Alert | -11 -10 -10 -9 -9 -9 -8 -8 -8 -7 -7 -7 -7 -7 -7 -6 -6 -6 -6 -6 -6 -6 -6 -5 -5 -5 -5 -5 -5 -4 -4 -4 -4 -4 -4 -4 -3 -3 -3 -3 -2 -2 -1 -1 ------- Run | Yrd Mat Min Mat Min Exi Min Mat Sto Fac Was Fac Low Low Zio Pro Fac Was Fac Ext Cet Arc Hub Fac Was Fac Upp Upp War Pro Fac Was Fac Upp Upp Zhi Pro Res Qua Sec Res Tes Acc Com Peak Influence 2203 | 5 149 186 793 375 . 72 387 883 545 110 164 . . . . 214 49 276 825 456 321 568 341 111 268 . . . . 804 337 722 . . . . 405 1681 2203 1654 1774 1123 767 Initial 1239 | . 3 10 15 243 . . . 163 401 110 . . . . . 91 19 34 73 455 170 . 272 81 77 . . . . 181 268 235 . . . . 27 126 1100 1239 1100 1100 633 Average 305 | 2 49 92 328 157 . 10 138 456 309 59 72 . . . . 80 28 145 479 427 145 208 222 93 132 . . . . 315 322 296 . . . . 141 1611 1862 1389 1689 881 550 Maximum Alert Level 5 | . . . 3 1 . . 1 3 2 . . . . . . 1 . 1 3 2 1 2 1 . 1 . . . . 3 1 3 . . . . 2 5 5 5 5 4 3 Low Security (%) 53 | 100 100 100 46 68 . 100 63 25 1 100 100 . . . . 90 100 63 22 . 67 64 44 100 63 . . . . 35 . 25 . . . . 69 1 . . . . 3 Level 1 24 | . . . 12 31 . . 36 22 84 . . . . . . 9 . 36 30 4 32 20 55 . 36 . . . . 31 100 61 . . . . 29 . . . . . 20 Level 2 10 | . . . 36 . . . . 26 14 . . . . . . . . . 13 95 . 15 . . . . . . . 20 . 7 . . . . . . . . . 14 62 Level 3 4 | . . . 4 . . . . 26 . . . . . . . . . . 33 . . . . . . . . . . 12 . 4 . . . . . . . . . 76 13 Level 4 4 | . . . . . . . . . . . . . . . . . . . . . . . . . . . . . . . . . . . . . . . . 87 . 8 . Level 5 . | . . . . . . . . . . . . . . . . . . . . . . . . . . . . . . . . . . . . . . . . . . . . High Security . | . . . . . . . . . . . . . . . . . . . . . . . . . . . . . . . . . . . . . . . . 11 . . . Max Security 1 | . . . . . . . . . . . . . . . . . . . . . . . . . . . . . . . . . . . . . . 98 99 . 99 . . Squads Dispatched 87 | . 2 . 4 1 . . 2 2 4 . 3 . . . . 2 . . 4 . . 3 7 . 4 . . . . 9 . 1 . . . . 1 . 13 1 6 8 10 Investigation 26 | . 1 . 1 1 . . 1 1 1 . 2 . . . . . . . 1 . . 1 3 . 3 . . . . 4 . . . . . . . . 1 . . 2 3 Extermination 14 | . . . . . . . . . 2 . 1 . . . . 1 . . . . . . 1 . 1 . . . . 4 . 1 . . . . 1 . . . . . 2 Reinforcement 25 | . 1 . 3 . . . 1 1 1 . . . . . . . . . 2 . . 2 3 . . . . . . 1 . . . . . . . . . 1 . 4 5 Assault 21 | . . . . . . . . . . . . . . . . . . . 1 . . . . . . . . . . . . . . . . . . . 12 . 6 2 . Garrison 1 | . . . . . . . . . . . . . . . . 1 . . . . . . . . . . . . . . . . . . . . . . . . . . . Intercept . | . . . . . . . . . . . . . . . . . . . . . . . . . . . . . . . . . . . . . . . . . . . . Searches Triggered . | . . . . . . . . . . . . . . . . . . . . . . . . . . . . . . . . . . . . . . . . . . . . Construction Impeded 2 | . . . . . . . . . . . . . . . . . . . 2 . . . . . . . . . . . . . . . . . . . . . . . . Haulers Reinforced 3 | . . . . . . . . . . . . . . . . . . . . . . . . . . . . . . . . . . . . . . . . 1 . 2 . Active Scanning Responses . | . . . . . . . . . . . . . . . . . . . . . . . . . . . . . . . . . . . . . . . . . . . . Cargo Convoy Interrupts 3 | . . . . . . . . . 1 . 1 . . . . . . 1 . . . . . . . . . . . . . . . . . . . . . . . . . Stealth | -11 -10 -10 -9 -9 -9 -8 -8 -8 -7 -7 -7 -7 -7 -7 -6 -6 -6 -6 -6 -6 -6 -6 -5 -5 -5 -5 -5 -5 -4 -4 -4 -4 -4 -4 -4 -3 -3 -3 -3 -2 -2 -1 -1 --------- Run | Yrd Mat Min Mat Min Exi Min Mat Sto Fac Was Fac Low Low Zio Pro Fac Was Fac Ext Cet Arc Hub Fac Was Fac Upp Upp War Pro Fac Was Fac Upp Upp Zhi Pro Res Qua Sec Res Tes Acc Com Distress Signals 49 | . 2 . 6 . . . 4 . 2 . 1 . . . . 2 . 2 2 1 . 2 . . . . . . . 4 . 1 . . . . 1 . 3 5 2 1 8 Communications Jammed 52 | . . . . . . . . . 10 . 20 . . . . . . . . . . 1 . . 3 . . . . 9 . 9 . . . . . . . . . . . Distress Signals 50 | . . . . . . . . . 10 . 20 . . . . . . . . . . . . . 3 . . . . 8 . 9 . . . . . . . . . . . Times Spotted 721 | . 27 10 64 4 . 3 34 7 31 . 20 3 4 . 8 13 7 15 31 5 2 8 14 1 11 5 4 40 9 27 5 22 18 6 . . 16 2 53 31 40 23 98 Peak Tracking Total 32 | . 5 5 5 4 . 3 5 3 6 . 4 3 4 . 4 2 7 8 9 5 1 4 4 1 4 4 8 12 5 5 5 9 7 5 . . 9 2 14 6 27 6 32 Tactical Retreats 58 | . 2 1 4 1 . . . 1 5 . 4 1 . . 3 4 1 6 . . . 1 . . . 1 1 1 1 6 . 4 5 1 . . 3 . 1 . . . . Traps | -11 -10 -10 -9 -9 -9 -8 -8 -8 -7 -7 -7 -7 -7 -7 -6 -6 -6 -6 -6 -6 -6 -6 -5 -5 -5 -5 -5 -5 -4 -4 -4 -4 -4 -4 -4 -3 -3 -3 -3 -2 -2 -1 -1 ------- Run | Yrd Mat Min Mat Min Exi Min Mat Sto Fac Was Fac Low Low Zio Pro Fac Was Fac Ext Cet Arc Hub Fac Was Fac Upp Upp War Pro Fac Was Fac Upp Upp Zhi Pro Res Qua Sec Res Tes Acc Com Traps Triggered 31 | . 1 . 2 . . . . 2 3 . 3 . . . . 3 . 2 2 . . 4 2 . . . . . . 1 . . . . . . 4 . . . . 2 . Indirectly 3 | . . . . . . . . . . . . . . . . . . . . . . 3 . . . . . . . . . . . . . . . . . . . . . Trap Hack Attempts 131 | . . . . . . . . . 104 . 25 . . . . . . . . . . . . . 2 . . . . . . . . . . . . . . . . . . Triggered . | . . . . . . . . . . . . . . . . . . . . . . . . . . . . . . . . . . . . . . . . . . . . Disarmed . | . . . . . . . . . . . . . . . . . . . . . . . . . . . . . . . . . . . . . . . . . . . . Reprogrammed 13 | . . . . . . . . . 6 . 6 . . . . . . . . . . . . . 1 . . . . . . . . . . . . . . . . . . Reused 7 | . . . . . . . . . 2 . 2 . . . . . . 1 . . . . . . . . . . . . . . 1 . . . . . . . . . 1 Traps Extracted 17 | . . . . . . . . . 7 . . . . . . . . . . . . . . . 1 . . 3 . . . . . . . . . . . . . . 6 Installed 32 | . . . . . . . . . 5 . 2 . . . . . . 2 . . . . . . . . . 1 2 . . . 6 . . . . . . . . . 14 Triggered 18 | . . . . . . . . . 3 . 2 1 . . . . . 1 . . . . . . . . . 6 . . . . 4 . . . . . . . . . 1 Most Traps Carried 8 | . . . . . . . . . 4 2 2 2 2 2 2 2 2 2 . . . . . . 1 1 1 3 5 5 5 5 8 8 8 8 8 8 8 8 8 8 8 Objects Rigged 9 | . . . . . . . . . . . . . . . . . . . . . . . . . . . . . . . . 9 . . . . . . . . . . . Exploded 2 | . . . . . . . . . . . . . . . . . . . . . . . . . . . . . . . . 2 . . . . . . . . . . . Machines | -11 -10 -10 -9 -9 -9 -8 -8 -8 -7 -7 -7 -7 -7 -7 -6 -6 -6 -6 -6 -6 -6 -6 -5 -5 -5 -5 -5 -5 -4 -4 -4 -4 -4 -4 -4 -3 -3 -3 -3 -2 -2 -1 -1 ---------- Run | Yrd Mat Min Mat Min Exi Min Mat Sto Fac Was Fac Low Low Zio Pro Fac Was Fac Ext Cet Arc Hub Fac Was Fac Upp Upp War Pro Fac Was Fac Upp Upp Zhi Pro Res Qua Sec Res Tes Acc Com Machines Disabled 72 | . . . 2 . . . 1 2 . . 1 . . . . 1 . 1 3 1 . 11 . . 1 . . 1 . 11 . 10 1 . . 1 1 1 10 3 7 1 1 Max in Single Turn 11 | . . . 1 . . . 1 1 . . 1 . . . . 1 . 1 2 1 . 11 . . 1 . . 1 . 3 . 7 1 . . 1 1 1 1 1 1 1 1 Garrison Access 17 | . . . . . . . . . . . 2 . . . . 2 . 2 . . . . 2 . . . . . . 4 . . . . . . 1 . . 2 . 2 . Network Hub 1 | . . . . . . . . . . . . . . . . . . . . . . 1 . . . . . . . . . . . . . . . . . . . . . Machines Repaired . | . . . . . . . . . . . . . . . . . . . . . . . . . . . . . . . . . . . . . . . . . . . . Machines Dismantled . | . . . . . . . . . . . . . . . . . . . . . . . . . . . . . . . . . . . . . . . . . . . . Machines Sabotaged . | . . . . . . . . . . . . . . . . . . . . . . . . . . . . . . . . . . . . . . . . . . . . Overloaded Fab Kills . | . . . . . . . . . . . . . . . . . . . . . . . . . . . . . . . . . . . . . . . . . . . . Hacking | -11 -10 -10 -9 -9 -9 -8 -8 -8 -7 -7 -7 -7 -7 -7 -6 -6 -6 -6 -6 -6 -6 -6 -5 -5 -5 -5 -5 -5 -4 -4 -4 -4 -4 -4 -4 -3 -3 -3 -3 -2 -2 -1 -1 --------- Run | Yrd Mat Min Mat Min Exi Min Mat Sto Fac Was Fac Low Low Zio Pro Fac Was Fac Ext Cet Arc Hub Fac Was Fac Upp Upp War Pro Fac Was Fac Upp Upp Zhi Pro Res Qua Sec Res Tes Acc Com Machines Accessed 244 | . 10 . 14 1 2 . 11 12 13 . 16 . . . . 23 . 8 11 1 . 3 24 . 19 . 1 4 . 29 . 5 2 . 4 . 8 . 1 6 . 9 7 Terminals 146 | . 7 . 9 . . . 7 10 8 . 7 . . . . 13 . 4 11 1 . 3 14 . 13 . . . . 14 . 4 . . . . 5 . 1 1 . 7 7 Fabricators 13 | . . . . . . . . . . . 1 . . . . . . . . . . . 3 . 4 . . . . 4 . 1 . . . . . . . . . . . Repair Stations 19 | . 1 . 2 . . . 1 . . . 2 . . . . 2 . 1 . . . . 4 . . . . . . 4 . . . . . . 1 . . 1 . . . Recycling Units 18 | . 2 . 2 . . . 1 2 1 . 2 . . . . 2 . . . . . . 1 . 1 . . . . 2 . . . . . . . . . 2 . . . Scanalyzers 12 | . . . 1 . . . 1 . 2 . 2 . . . . 2 . 1 . . . . . . 1 . . . . 1 . . . . . . 1 . . . . . . Garrison Access 22 | . . . . . . . 1 . 2 . 2 . . . . 4 . 2 . . . . 2 . . . . . . 4 . . . . . . 1 . . 2 . 2 . Total Hacks 854 | . 29 . 38 1 2 . 33 31 37 . 59 . . . . 61 . 18 24 1 . 6 126 . 84 . 1 10 . 136 . 40 3 . 17 . 23 . 6 20 . 30 18 Successful 428 | . 18 . 17 1 2 . 18 10 20 . 37 . . . . 28 . 8 9 1 . 1 57 . 38 . 1 10 . 75 . 20 3 . 17 . 11 . 2 5 . 14 5 Failed 423 | . 10 . 21 . . . 14 21 17 . 22 . . . . 33 . 10 15 . . 5 69 . 46 . . . . 60 . 20 . . . . 12 . 4 15 . 16 13 Catastrophic 90 | . . . 5 . . . 3 3 6 . 5 . . . . 7 . 1 2 . . 1 13 . 13 . . . . 12 . 3 . . . . 2 . 1 5 . 3 5 Database Lockouts 3 | . 1 . . . . . 1 . . . . . . . . . . . . . . . . . . . . . . 1 . . . . . . . . . . . . . Manual 292 | . 17 . 9 . 1 . 10 9 12 . 9 . . . . 19 . 1 7 1 . 3 61 . 45 . . . . 44 . 21 . . . . 6 . 2 5 . 4 6 Terminals 527 | . 22 . 18 . . . 19 26 18 . 21 . . . . 36 . 11 24 1 . 6 89 . 60 . . . . 74 . 33 . . . . 17 . 6 3 . 25 18 Fabricators 60 | . . . . . . . . . . . 3 . . . . . . . . . . . 15 . 16 . . . . 19 . 7 . . . . . . . . . . . Repair Stations 63 | . 2 . 11 . . . 3 . . . 4 . . . . 7 . 1 . . . . 13 . . . . . . 12 . . . . . . 4 . . 6 . . . Recycling Units 60 | . 5 . 6 . . . 3 5 2 . 3 . . . . 5 . . . . . . 2 . 6 . . . . 18 . . . . . . . . . 5 . . . Scanalyzers 63 | . . . 3 . . . 5 . 13 . 24 . . . . 6 . 1 . . . . . . 2 . . . . 8 . . . . . . 1 . . . . . . Garrison Access 47 | . . . . . . . 3 . 4 . 4 . . . . 7 . 5 . . . . 7 . . . . . . 5 . . . . . . 1 . . 6 . 5 . Terminal Hacks 218 | . 12 . 4 1 2 . 9 10 4 . 11 . . . . 12 . 4 7 1 . 1 29 . 21 . 1 10 . 24 . 10 3 . 17 . 7 . 2 . . 11 5 Record 17 | . . . . . 1 . . . . . . . . . . . . . . . . . . . . . . 8 . . . . 2 . 5 . . . 1 . . . . Part Schematic 18 | . 1 . 1 . . . 1 . 1 . . . . . . 2 . . . . . . 3 . 4 . . . . . . 1 . . 4 . . . . . . . . Robot Analysis 11 | . 4 . . . . . 1 . . . . . . . . 2 . . . . . . . . . . . . . . . . . . 4 . . . . . . . . Prototype ID Bank 18 | . 1 . . . . . . 2 . . . . . . . . . . . . . . 3 . 2 . . . . 4 . . . . 4 . 1 . 1 . . . . Open Door 20 | . . . . 1 . . . 2 . . . . . . . 2 . . 7 1 . . . . . . 1 2 . . . . 1 . . . . . . . . 2 1 Level Access Points 4 | . . . . . . . . 1 . . 2 . . . . . . . . . . . . . . . . . . . . . . . . . 1 . . . . . . Branch Access Points 9 | . . . . . . . 1 . . . 1 . . . . . . 1 . . . . 1 . 1 . . . . 1 . 1 . . . . 1 . . . . 1 . Emergency Access Points 2 | . . . . . . . 1 . . . . . . . . . . . . . . . . . . . . . . 1 . . . . . . . . . . . . . Terminal Index 5 | . . . . . . . . . . . 1 . . . . . . . . . . . 1 . 1 . . . . . . 1 . . . . . . . . . . 1 Fabricator Index 1 | . . . . . . . . . . . . . . . . 1 . . . . . . . . . . . . . . . . . . . . . . . . . . . Garrison Index 3 | . . . . . . . . . . . . . . . . . . 1 . . . . 1 . 1 . . . . . . . . . . . . . . . . . . Alert Level 9 | . 1 . . . . . . 1 . . 1 . . . . . . . . . . . 1 . . . . . . 2 . 1 . . . . . . . . . 1 1 Unreport Threat 27 | . 1 . 1 . . . 1 . . . 2 . . . . 2 . . . . . . . . 4 . . . . 4 . 4 . . . . 3 . . . . 4 1 Locate Traps 25 | . 3 . . . . . 2 2 2 . 2 . . . . 2 . 1 . . . 1 7 . 1 . . . . 1 . . . . . . . . . . . 1 . Dispatch Records 5 | . . . . . . . 1 . . . . . . . . . . . . . . . 1 . 1 . . . . 2 . . . . . . . . . . . . . Maintenance Status 1 | . . . . . . . . . . . . . . . . . . . . . . . 1 . . . . . . . . . . . . . . . . . . . . Recall Investigation 4 | . . . . . . . . . . . . . . . . . . . . . . . 1 . 2 . . . . 1 . . . . . . . . . . . . . Recall Extermination 4 | . . . . . . . . . . . . . . . . . . . . . . . 1 . 1 . . . . 1 . 1 . . . . . . . . . . . Recall Reinforcements 2 | . . . . . . . . . . . . . . . . . . . . . . . 1 . . . . . . 1 . . . . . . . . . . . . . Hauler Manifests 14 | . 1 . 2 . . . 1 1 1 . 1 . . . . 1 . 1 . . . . 1 . 1 . . . . 1 . 1 . . . . 1 . . . . . . Registered Components 3 | . . . . . . . . . . . . . . . . . . . . . . . 1 . . . . . . 1 . . . . . . . . . . . 1 . Registered Prototypes 2 | . . . . . . . . . . . . . . . . . . . . . . . . . . . . . . 1 . . . . . . . . . . . 1 . Zone Layout 12 | . . . . . . . . 1 . . 1 . . . . . . . . . . . 5 . 2 . . . . 3 . . . . . . . . . . . . . Derelict Proto ID Bank 1 | . . . . . 1 . . . . . . . . . . . . . . . . . . . . . . . . . . . . . . . . . . . . . . Disengage Seal 1 | . . . . . . . . . . . . . . . . . . . . . . . . . . . . . . . . . . . . . . . . . . . 1 Fabricator Hacks 26 | . . . . . . . . . . . 1 . . . . . . . . . . . 5 . 7 . . . . 8 . 5 . . . . . . . . . . . Network Status 4 | . . . . . . . . . . . 1 . . . . . . . . . . . 1 . 1 . . . . . . 1 . . . . . . . . . . . Load Schematic 11 | . . . . . . . . . . . . . . . . . . . . . . . 2 . 3 . . . . 4 . 2 . . . . . . . . . . . Build 11 | . . . . . . . . . . . . . . . . . . . . . . . 2 . 3 . . . . 4 . 2 . . . . . . . . . . . Repair Station Hacks 45 | . 2 . 9 . . . 2 . . . 2 . . . . 6 . 1 . . . . 10 . . . . . . 9 . . . . . . 2 . . 2 . . . Scan Component 24 | . 1 . 5 . . . 1 . . . 1 . . . . 3 . 1 . . . . 5 . . . . . . 5 . . . . . . 1 . . 1 . . . Repair 21 | . 1 . 4 . . . 1 . . . 1 . . . . 3 . . . . . . 5 . . . . . . 4 . . . . . . 1 . . 1 . . . Recycling Unit Hacks 24 | . 3 . 2 . . . 1 . 2 . 1 . . . . 1 . . . . . . 1 . 1 . . . . 12 . . . . . . . . . . . . . Recycle Component 2 | . . . . . . . . . . . . . . . . . . . . . . . . . . . . . . 2 . . . . . . . . . . . . . Process 4 | . . . . . . . . . . . . . . . . . . . . . . . . . . . . . . 4 . . . . . . . . . . . . . Retrieve Matter 3 | . . . . . . . . . . . . . . . . . . . . . . . . . . . . . . 3 . . . . . . . . . . . . . Retrieve Components 15 | . 3 . 2 . . . 1 . 2 . 1 . . . . 1 . . . . . . 1 . 1 . . . . 3 . . . . . . . . . . . . . Scanalyzer 51 | . . . 2 . . . 5 . 10 . 19 . . . . 4 . 1 . . . . . . 1 . . . . 8 . . . . . . 1 . . . . . . Insert Component 21 | . . . 1 . . . 2 . 4 . 5 . . . . 2 . 1 . . . . . . 1 . . . . 4 . . . . . . 1 . . . . . . Analyze 30 | . . . 1 . . . 3 . 6 . 14 . . . . 2 . . . . . . . . . . . . . 4 . . . . . . . . . . . . . Garrison Access Hacks 17 | . . . . . . . . . . . 2 . . . . 2 . 2 . . . . 2 . . . . . . 4 . . . . . . 1 . . 2 . 2 . Seal Access 17 | . . . . . . . . . . . 2 . . . . 2 . 2 . . . . 2 . . . . . . 4 . . . . . . 1 . . 2 . 2 . Unauthorized Hacks 47 | . 1 . . . . . 1 . 4 . 1 . . . . 3 . . 2 . . . 10 . 8 . . . . 10 . 5 . . . . . . . 1 . 1 . Terminals 35 | . 1 . . . . . . . 4 . 1 . . . . 3 . . 2 . . . 7 . 5 . . . . 7 . 4 . . . . . . . . . 1 . Track 3 | . . . . . . . . . . . . . . . . . . . . . . . 1 . 1 . . . . . . 1 . . . . . . . . . . . Assimilate 19 | . . . . . . . . . 2 . 1 . . . . 2 . . 2 . . . 3 . 2 . . . . 5 . 2 . . . . . . . . . . . Botnet 12 | . 1 . . . . . . . 2 . . . . . . 1 . . . . . . 3 . 2 . . . . 2 . . . . . . . . . . . 1 . Detonate 1 | . . . . . . . . . . . . . . . . . . . . . . . . . . . . . . . . 1 . . . . . . . . . . . Fabricators 6 | . . . . . . . . . . . . . . . . . . . . . . . 2 . 1 . . . . 2 . 1 . . . . . . . . . . . Prioritize 5 | . . . . . . . . . . . . . . . . . . . . . . . 1 . 1 . . . . 2 . 1 . . . . . . . . . . . Haulers 1 | . . . . . . . . . . . . . . . . . . . . . . . 1 . . . . . . . . . . . . . . . . . . . . Repair Stations . | . . . . . . . . . . . . . . . . . . . . . . . . . . . . . . . . . . . . . . . . . . . . Recycling Units 6 | . . . . . . . 1 . . . . . . . . . . . . . . . 1 . 2 . . . . 1 . . . . . . . . . 1 . . . Reject 3 | . . . . . . . 1 . . . . . . . . . . . . . . . 1 . 1 . . . . . . . . . . . . . . . . . . Recyclers 3 | . . . . . . . . . . . . . . . . . . . . . . . . . 1 . . . . 1 . . . . . . . . . 1 . . . Scanalyzers . | . . . . . . . . . . . . . . . . . . . . . . . . . . . . . . . . . . . . . . . . . . . . Garrison Access . | . . . . . . . . . . . . . . . . . . . . . . . . . . . . . . . . . . . . . . . . . . . . Data Cores Recovered 5 | . . . . . . . 1 . . . . . . . . . . 1 1 . . . . . . . . . . . . . . . . . . . . 1 . 1 . Used 1 | . . . . . . . . . . . . . . . . . . . . . . . . . . . . . . . . . . . . . . . . 1 . . . Hacking Detections 189 | . 9 . 13 . . . 11 12 13 . 15 . . . . 16 . 6 8 . . 3 20 . 15 . . . . 17 . 5 . . . . 7 . 1 3 . 9 6 Full Trace Events 23 | . . . 1 . . . 1 1 1 . 2 . . . . . . . 1 . . 1 3 . 3 . . . . 4 . . . . . . . . 1 . . 2 2 Feedback Events 1 | . . . . . . . . . . . . . . . . . . . . . . . . . . . . . . . . . . . . . . . . . . 1 . Corruption 1 | . . . . . . . . . . . . . . . . . . . . . . . . . . . . . . . . . . . . . . . . . . 1 . Feedback Blocked . | . . . . . . . . . . . . . . . . . . . . . . . . . . . . . . . . . . . . . . . . . . . . Robot Schematics Acquired 3 | . . . . . . . . . . . . . . 3 . . . . . . . . . . . . . . . . . . . . . . . . . . . . . Robots Built . | . . . . . . . . . . . . . . . . . . . . . . . . . . . . . . . . . . . . . . . . . . . . Authchips . | . . . . . . . . . . . . . . . . . . . . . . . . . . . . . . . . . . . . . . . . . . . . Time . | . . . . . . . . . . . . . . . . . . . . . . . . . . . . . . . . . . . . . . . . . . . . Total Robot Build Rating . | . . . . . . . . . . . . . . . . . . . . . . . . . . . . . . . . . . . . . . . . . . . . Part Schematics Acquired 49 | . 1 . 2 . . . 2 . 5 . 5 . . 15 . 4 . . . . . . 3 . 4 . . . . 3 . 1 . . 4 . . . . . . . . Parts Built 12 | . . . . . . . . . . . . . . . . . . . . . . . 2 . 3 . . . . 5 . 2 . . . . . . . . . . . Authchips 2 | . . . . . . . . . . . . . . . . . . . . . . . . . . . . . . . . 2 . . . . . . . . . . . Time 539 | . . . . . . . . . . . . . . . . . . . . . . . 117 . 172 . . . . 179 . 71 . . . . . . . . . . . Total Part Build Rating 60 | . . . . . . . . . . . . . . . . . . . . . . . 10 . 13 . . . . 24 . 13 . . . . . . . . . . . Parts Repaired 21 | . 1 . 4 . . . 1 . . . 1 . . . . 3 . . . . . . 5 . . . . . . 4 . . . . . . 1 . . 1 . . . Time 870 | . 26 . 146 . . . 38 . . . 38 . . . . 158 . . . . . . 218 . . . . . . 180 . . . . . . 26 . . 40 . . . Parts Recycled 2 | . . . . . . . . . . . . . . . . . . . . . . . . . . . . . . 2 . . . . . . . . . . . . . Recycled Matter 18 | . . . . . . . . . . . . . . . . . . . . . . . . . . . . . . 18 . . . . . . . . . . . . . Retrieved Matter 18 | . . . . . . . . . . . . . . . . . . . . . . . . . . . . . . 18 . . . . . . . . . . . . . Retrieved Components 43 | . 13 . 13 . . . 10 . . . 1 . . . . 1 . . . . . . 1 . 3 . . . . 1 . . . . . . . . . . . . . Parts Scanalyzed 17 | . . . 1 . . . 2 . 4 . 5 . . . . 2 . . . . . . . . . . . . . 3 . . . . . . . . . . . . . Part Schematics Acquired 17 | . . . 1 . . . 2 . 4 . 5 . . . . 2 . . . . . . . . . . . . . 3 . . . . . . . . . . . . . Parts Damaged 2 | . . . . . . . . . . . 1 . . . . . . . . . . . . . . . . . . 1 . . . . . . . . . . . . . Bothacking | -11 -10 -10 -9 -9 -9 -8 -8 -8 -7 -7 -7 -7 -7 -7 -6 -6 -6 -6 -6 -6 -6 -6 -5 -5 -5 -5 -5 -5 -4 -4 -4 -4 -4 -4 -4 -3 -3 -3 -3 -2 -2 -1 -1 ------------ Run | Yrd Mat Min Mat Min Exi Min Mat Sto Fac Was Fac Low Low Zio Pro Fac Was Fac Ext Cet Arc Hub Fac Was Fac Upp Upp War Pro Fac Was Fac Upp Upp Zhi Pro Res Qua Sec Res Tes Acc Com Used RIF Installer . | . . . . . . . . . . . . . . . . . . . . . . . . . . . . . . . . . . . . . . . . . . . . Robots Hacked 8 | . . . . . 4 . . . . . . . . . . 1 . . 1 . 2 . . . . . . . . . . . . . . . . . . . . . . Non-combat 6 | . . . . . 3 . . . . . . . . . . 1 . . 1 . 1 . . . . . . . . . . . . . . . . . . . . . . Combat 2 | . . . . . 1 . . . . . . . . . . . . . . . 1 . . . . . . . . . . . . . . . . . . . . . . Robot Hacks Applied 8 | . . . . . 4 . . . . . . . . . . 1 . . 1 . 2 . . . . . . . . . . . . . . . . . . . . . . parse_system 5 | . . . . . 4 . . . . . . . . . . . . . . . 1 . . . . . . . . . . . . . . . . . . . . . . find_chute 1 | . . . . . . . . . . . . . . . . 1 . . . . . . . . . . . . . . . . . . . . . . . . . . . check_alert 2 | . . . . . . . . . . . . . . . . . . . 1 . 1 . . . . . . . . . . . . . . . . . . . . . . Relay Couplers Released 4 | . . . . . . . . . . . . . . . . . . . . . . . . . . . . . . 4 . . . . . . . . . . . . . Programmers 4 | . . . . . . . . . . . . . . . . . . . . . . . . . . . . . . 4 . . . . . . . . . . . . . Fabnet Peak Effective % . | . . . . . . . . . . . . . . . . . . . . . . . . . . . . . . . . . . . . . . . . . . . . Robots Rewired 17 | . . . . . . . . 1 . . . . . . . 2 . . 9 . . . . . . . . 5 . . . . . . . . . . . . . . . Allies Hacked . | . . . . . . . . . . . . . . . . . . . . . . . . . . . . . . . . . . . . . . . . . . . . Hacks Repelled 2 | . . . . . . . . . . . . . . . . 2 . . . . . . . . . . . . . . . . . . . . . . . . . . . Allies | -11 -10 -10 -9 -9 -9 -8 -8 -8 -7 -7 -7 -7 -7 -7 -6 -6 -6 -6 -6 -6 -6 -6 -5 -5 -5 -5 -5 -5 -4 -4 -4 -4 -4 -4 -4 -3 -3 -3 -3 -2 -2 -1 -1 -------- Run | Yrd Mat Min Mat Min Exi Min Mat Sto Fac Was Fac Low Low Zio Pro Fac Was Fac Ext Cet Arc Hub Fac Was Fac Upp Upp War Pro Fac Was Fac Upp Upp Zhi Pro Res Qua Sec Res Tes Acc Com Total Allies 84 | . . . . . . . . 10 1 . 1 . . . . 7 . . 23 5 . . 2 . 2 . . 5 . 4 . 2 . . . . . . . . . . 22 Largest Group 16 | . . . . . . . . 10 2 . 1 . . . . 3 1 . 16 11 8 5 1 . 2 2 . 5 . 2 1 1 . . . . . . . . . . 15 Highest-Rated Group 670 | . . . . . . . . 173 45 . 26 . . . . 93 10 . 563 670 670 480 26 . 20 19 . 283 . 36 26 10 . . . . . . . . . . 212 Highest-Rated Ally 159 | . . . . . . . . 29 29 . 26 . . . . 31 10 . 159 159 159 96 26 . 10 10 . 68 . 26 26 10 . . . . . . . . . . 15 Total Orders 24 | . . . . . . . . . . . 2 . . . . 1 . . 6 . . . 6 . . . . 8 . . . 1 . . . . . . . . . . . STAY 14 | . . . . . . . . . . . 1 . . . . 1 . . 3 . . . 3 . . . . 6 . . . . . . . . . . . . . . . FOLLOW 10 | . . . . . . . . . . . 1 . . . . . . . 3 . . . 3 . . . . 2 . . . 1 . . . . . . . . . . . Ally Attacks 505 | . . . . . . . . 117 4 . . . . . . 30 . . 152 34 21 32 . . . . . 7 . . . . . . . . . . . . . . 108 Total Damage 11381 | . . . . . . . . 1553 61 . . . . . . 332 . . 3873 906 1017 1238 . . . . . 506 . . . . . . . . . . . . . . 1895 Kills 61 | . . . . . . . . 19 . . . . . . . 1 . . 23 5 4 7 . . . . . 1 . . . . . . . . . . . . . . 1 Allies Corrupted 2 | . . . . . . . . . . . . . . . . . . . 1 . . 1 . . . . . . . . . . . . . . . . . . . . . Allies Melted 2 | . . . . . . . . . . . . . . . . . . . . . . . . . . . . . . . . . . . . . . . . 1 . . 1 Intel | -11 -10 -10 -9 -9 -9 -8 -8 -8 -7 -7 -7 -7 -7 -7 -6 -6 -6 -6 -6 -6 -6 -6 -5 -5 -5 -5 -5 -5 -4 -4 -4 -4 -4 -4 -4 -3 -3 -3 -3 -2 -2 -1 -1 ------- Run | Yrd Mat Min Mat Min Exi Min Mat Sto Fac Was Fac Low Low Zio Pro Fac Was Fac Ext Cet Arc Hub Fac Was Fac Upp Upp War Pro Fac Was Fac Upp Upp Zhi Pro Res Qua Sec Res Tes Acc Com Robot Analysis Total 11 | . 4 . . . . . 1 . . . . . . . . 2 . . . . . . . . . . . . . . . . . . 4 . . . . . . . . Derelict Logs Recovered 14 | . . 2 . 1 . . . . . . . 2 1 2 3 . . . . . . . . . . 1 . . . . . . 1 1 . . . . . . . . . Drone Launches . | . . . . . . . . . . . . . . . . . . . . . . . . . . . . . . . . . . . . . . . . . . . . Drone Recoveries . | . . . . . . . . . . . . . . . . . . . . . . . . . . . . . . . . . . . . . . . . . . . . Exploration | -11 -10 -10 -9 -9 -9 -8 -8 -8 -7 -7 -7 -7 -7 -7 -6 -6 -6 -6 -6 -6 -6 -6 -5 -5 -5 -5 -5 -5 -4 -4 -4 -4 -4 -4 -4 -3 -3 -3 -3 -2 -2 -1 -1 ------------- Run | Yrd Mat Min Mat Min Exi Min Mat Sto Fac Was Fac Low Low Zio Pro Fac Was Fac Ext Cet Arc Hub Fac Was Fac Upp Upp War Pro Fac Was Fac Upp Upp Zhi Pro Res Qua Sec Res Tes Acc Com Turns Passed 33632 | 88 2187 1028 3599 1259 641 835 2737 292 1582 739 1206 139 97 340 185 1395 29 1003 1051 229 1185 240 1551 10 1075 151 66 643 180 2518 65 704 335 73 77 83 561 53 324 1531 176 304 1066 Spaces Moved 46276 | 62 877 393 1511 539 281 355 1030 481 2669 362 2885 376 397 1240 604 2567 129 1535 1424 176 68 428 2649 67 2512 551 301 1072 514 5735 141 1475 765 244 206 246 1108 218 973 3892 515 842 1861 Core 38 | 10 . . . . . . . . . . . . . . . . . . . . . . . . . . . . . . . . . . . . . . . . . . 28 Treads 4872 | 3 761 393 1511 539 281 355 1029 . . . . . . . . . . . . . . . . . . . . . . . . . . . . . . . . . . . . Legs 165 | 49 116 . . . . . . . . . . . . . . . . . . . . . . . . . . . . . . . . . . . . . . . . . . Wheels . | . . . . . . . . . . . . . . . . . . . . . . . . . . . . . . . . . . . . . . . . . . . . Hover . | . . . . . . . . . . . . . . . . . . . . . . . . . . . . . . . . . . . . . . . . . . . . Flight 40757 | . . . . . . . 1 481 2669 362 2885 376 397 1240 604 2567 129 1535 1424 176 68 428 2649 67 2512 551 301 1072 514 5735 141 1475 765 244 206 246 1108 218 937 3874 454 811 1535 Fastest Speed 5 | 50 120 240 145 225 225 225 225 26 23 23 23 23 23 23 23 20 20 20 20 20 20 20 11 11 17 17 17 15 15 14 14 12 15 15 15 15 15 6 16 17 17 5 6 Average Speed 40 | 110 223 240 200 225 225 225 226 26 23 23 23 23 23 23 23 20 20 20 20 20 20 20 17 14 17 17 17 23 15 14 14 13 15 15 17 15 15 15 16 17 17 13 17 Slowest Speed 455 | 160 240 240 240 225 225 225 309 29 23 23 23 23 23 23 23 93 20 20 90 20 20 20 20 17 17 17 17 83 15 18 14 14 84 15 455 15 16 16 19 90 85 14 200 Overloaded Moves 81 | . . . . . . . . . . . . . . . . . . . . . . . 1 29 . . . . . . . 20 . . . . . 11 . . . 1 19 Propulsion Burnouts . | . . . . . . . . . . . . . . . . . . . . . . . . . . . . . . . . . . . . . . . . . . . . Robots Hopped 183 | . . . . . . . . 10 13 . 24 . . . . 20 . 3 20 . . 2 7 . 10 . . 3 . 28 . 16 . . . . 6 . . 10 . . 11 Cave-ins Triggered . | . . . . . . . . . . . . . . . . . . . . . . . . . . . . . . . . . . . . . . . . . . . . Teleports 297 | . . . . . . . . . . . . . . . . . . . . . . . . . . . . . . . . . . . . . . . 29 152 17 32 67 Spacefolds 36 | . . . . . . . . . . . . . . . . . . . . . . . . . . . . . . . . . . . . . . . 13 6 5 3 9 Microwarps 17 | . . . . . . . . . . . . . . . . . . . . . . . . . . . . . . . . . . . . . . . . . 4 1 12 Exploration Rate (%) 65 | 4 99 83 99 99 65 49 87 76 61 95 59 57 77 82 72 63 77 36 94 66 69 44 65 80 69 74 53 93 57 88 70 39 80 50 60 52 32 36 68 74 79 27 32 Regions Visited 43 Branch Regions 25 Pre-discovered Areas 9 | . . 1 . . 1 . . . . . . . . 2 1 . . . . . . . . . . . . . . . . . 1 . 3 . . . . . . . . Known Exits Taken 14 | . . . . . . . 1 1 . . 1 1 . . 1 . . 1 . . . 1 . . 1 . . . . . . 1 . . . . 1 . 1 1 1 1 . Unknown Exits Taken 21 | 1 1 1 1 1 1 1 . . . . . . 1 1 . . . . 1 1 1 . . . . 1 1 1 1 . . . 1 1 1 1 . 1 . . . . . Scrap Searched 19 | . . 1 . 2 . 1 . . . . . 1 1 2 2 . . . . . . . . . . 3 1 . 2 . . . 2 . . 1 . . . . . . . Spaces Dug 630 | . . . 3 1 . 1 5 7 39 . 31 . 1 . 14 24 . 37 4 . . 1 59 . 37 3 . 4 2 144 . 24 5 3 . 3 60 2 15 52 3 22 24 Terrain Destroyed 1946 | . . 44 44 26 . 3 24 7 44 . 53 1 1 . 42 25 . 78 43 2 . 152 64 . 56 36 55 49 103 435 16 100 66 23 . 10 105 2 40 126 3 35 33 Melee 564 | . . . . 1 . 1 5 7 39 . 31 . 1 . 2 24 . 32 4 . . 1 57 . 37 3 . 4 2 141 . 23 5 3 . 3 27 2 15 52 3 15 24 Projectile 120 | . . . 5 . . 2 9 . . . 1 1 . . . 1 . 8 13 2 . . 7 . . . . . . 16 . 4 5 1 . . . . . 37 . 1 7 AOE 1259 | . . 44 39 25 . . 10 . 5 . 21 . . . 40 . . 38 26 . . 151 . . 19 33 55 45 101 278 16 73 56 19 . 7 78 . 25 36 . 19 . Terrain Rammed . | . . . . . . . . . . . . . . . . . . . . . . . . . . . . . . . . . . . . . . . . . . . . Walls Destroyed . | . . . . . . . . . . . . . . . . . . . . . . . . . . . . . . . . . . . . . . . . . . . . Machines Disabled . | . . . . . . . . . . . . . . . . . . . . . . . . . . . . . . . . . . . . . . . . . . . . Actions | -11 -10 -10 -9 -9 -9 -8 -8 -8 -7 -7 -7 -7 -7 -7 -6 -6 -6 -6 -6 -6 -6 -6 -5 -5 -5 -5 -5 -5 -4 -4 -4 -4 -4 -4 -4 -3 -3 -3 -3 -2 -2 -1 -1 --------- Run | Yrd Mat Min Mat Min Exi Min Mat Sto Fac Was Fac Low Low Zio Pro Fac Was Fac Ext Cet Arc Hub Fac Was Fac Upp Upp War Pro Fac Was Fac Upp Upp Zhi Pro Res Qua Sec Res Tes Acc Com Total 58295 | 76 1035 435 1892 581 288 372 1304 614 3554 1017 3323 418 399 1293 641 3341 131 2150 2088 354 1233 570 3582 66 3058 589 308 1420 583 7017 182 1909 946 269 238 282 1407 230 1057 4477 533 933 2100 Wait 9170 | . 63 6 146 14 . 4 123 54 673 654 295 27 . . 32 667 3 518 540 161 1159 113 784 . 442 22 1 278 41 942 39 405 141 18 11 30 173 3 42 202 31 23 290 Move 45503 | 61 876 392 1510 538 280 354 1029 465 2643 361 2837 375 396 1239 603 2530 128 1528 1390 175 67 423 2636 66 2492 550 300 1066 513 5680 140 1442 764 243 205 245 1094 217 949 3861 462 814 1564 Hop 159 | . . . . . . . . 5 13 . 23 . . . . 17 . 3 13 . . 2 6 . 9 . . 2 . 27 . 16 . . . . 6 . . 8 . . 9 Pick Up 262 | 5 22 3 34 7 1 . 12 8 4 1 7 . . 17 . 12 . 2 . . . . 11 . 10 . . 5 . 26 . 2 1 . 1 . 14 . 6 32 5 10 4 Fast Attach 206 | 8 4 . 10 . . . 6 7 3 . 13 . . 15 . 11 . 6 . 2 . . 1 . 4 . . 8 . 6 . 1 . . 7 . 4 2 11 54 6 8 9 Attach 108 | . 1 1 4 1 . . 4 1 3 . 4 . . 2 . 6 . . . . . . 9 . . . . 2 . 4 . 2 . . . . 4 . 4 18 3 9 26 Detach 76 | 1 1 . . . . . 1 4 1 . 4 . . 4 . 6 . . . . . . 2 . 1 . . . . 1 . . . . . . . . 3 15 3 6 23 Swap 388 | . 10 1 30 5 2 3 26 5 19 . 29 10 2 2 . 8 . 13 13 . . 8 18 . 20 6 3 7 6 34 1 8 9 1 2 2 12 1 2 42 3 13 12 Drop 372 | . 16 3 48 9 1 . 28 14 5 1 13 1 . 13 . 12 . 7 2 2 . 1 5 . 16 . . 13 . 23 . 2 . . 7 . 14 3 7 78 10 9 9 Fire 675 | 1 40 24 107 4 . 8 67 . 1 . 7 3 . . 4 1 . 16 54 14 5 3 11 . 3 5 4 17 10 54 2 5 15 4 . 1 8 . 3 95 . 7 72 Melee 998 | . . . . 2 4 1 5 30 62 . 64 2 1 1 2 47 . 37 34 . 2 2 81 . 59 6 . 21 11 220 . 26 10 3 5 4 47 4 30 72 10 28 65 Ram . | . . . . . . . . . . . . . . . . . . . . . . . . . . . . . . . . . . . . . . . . . . . . Kick . | . . . . . . . . . . . . . . . . . . . . . . . . . . . . . . . . . . . . . . . . . . . . Crush 16 | . 2 5 3 1 . 2 3 . . . . . . . . . . . . . . . . . . . . . . . . . . . . . . . . . . . . Escape Stasis 181 | . . . . . . . . 18 18 . . . . . . 18 . 18 36 . . 18 18 . . . . . . . . . . . . . 31 . . . . 6 . Rewire 18 | . . . . . . . . 3 . . . . . . . 6 . . 6 . . . . . . . . . . . . . . . . . . . . . . . 3 Trap 163 | . . . . . . . . . 109 . 27 . . . . . . 2 . . . . . . 2 . . 1 2 . . . 6 . . . . . . . . . 14 Miscellaneous . | . . . . . . . . . . . . . . . . . . . . . . . . . . . . . . . . . . . . . . . . . . . . Route ------- -11/Scrapyard -10/Materials (discovered 5 exits: *Mat x3 / [*Min x2]) -10/Mines -9/Materials (discovered 5 exits: *Mat x3 / *Min x2) -9/Mines (discovered 3 exits: *Mat x2 / *Exi) -9/Exiles -8/Mines -8/Materials (discovered 5 exits: *Fac x3 / *Sto x2) -8/Storage -7/Factory (discovered 3 exits: *Fac x2 / *Low) -7/Waste -7/Factory (discovered 6 exits: *Fac x4 / *Low x2) -7/Lower Caves -7/Lower Caves (discovered 2 exits: *Fac / [*Zio]) -7/Zion -6/Proximity Caves -6/Factory (discovered 6 exits: *Fac x3 / *Low / *Ext x2) -6/Waste -6/Factory (discovered 5 exits: *Fac / *Low x2 / *Ext x2) -6/Extension (discovered 2 exits: *Fac / *Cet) -6/Cetus -6/Archives -6/Hub_04(d) (discovered 2 exits: *Fac x2) -5/Factory (discovered 3 exits: *Fac / *Upp x2) -5/Waste -5/Factory (discovered 4 exits: *Fac x2 / *Upp x2) -5/Upper Caves -5/Upper Caves (discovered 2 exits: *Fac / *War) -5/Warlord -4/Proximity Caves -4/Factory (discovered 5 exits: *Res x2 / Upp x2 / Arm) -4/Waste -4/Factory (discovered 4 exits: *Res / *Upp x2 / Arm) -4/Upper Caves -4/Upper Caves -4/Zhirov -3/Proximity Caves -3/Research (discovered 5 exits: Res x3 / *Qua x2) -3/Quarantine (discovered 2 exits: Res / *Sec) -3/Section 7 -2/Research (discovered 4 exits: *Acc x2 / *Tes x2) -2/Testing -1/Access (discovered 2 exits: [*Sur] / *Com) -1/Command History --------- Turn | Location | Event 12 | -11/Scrapyard | Discovered new exit (range 14) 89 | -11/Scrapyard | Entered Materials 299 | -10/Materials | Discovered new exit (range 13) 308 | -10/Materials | Build established: Mutant 611 | -10/Materials | Discovered new exit (range 9) 666 | -10/Materials | Discovered new exit (range 10) 956 | -10/Materials | Central database locked down 1095 | -10/Materials | Core integrity fell below 50% 1516 | -10/Materials | Discovered new exit (range 6) 1693 | -10/Materials | Discovered new exit (range 9) 2125 | -10/Materials | Repaired Lgt. Treads 2276 | -10/Materials | Entered Mines 2814 | -10/Mines | Assembled infested the area 2992 | -10/Mines | Core integrity fell below 20% 3130 | -10/Mines | Learned Materials security intel 3202 | -10/Mines | Learned location of Zion (-7) 3285 | -10/Mines | Discovered new exit (range 10) 3304 | -10/Mines | Entered Materials 3304 | -9/Materials | Evolved 2 slots: Propulsion x1, Utility x1 4063 | -9/Materials | Discovered new exit (range 7) 4955 | -9/Materials | Discovered new exit (range 7) 5473 | -9/Materials | Discovered new exit (range 7) 5655 | -9/Materials | Discovered new exit (range 8) 6090 | -9/Materials | Discovered new exit (range 5) 6213 | -9/Materials | Repaired Adv. Treads 6257 | -9/Materials | Repaired Adv. Treads 6298 | -9/Materials | Repaired Adv. Treads 6334 | -9/Materials | Repaired Imp. Light Cannon 6903 | -9/Materials | Entered Mines 7081 | -9/Mines | Received a Rocket Launcher from a helpful Derelict 7234 | -9/Mines | Met a Derelict shopkeep closing up shop 7410 | -9/Mines | Deemed a non-threat by the Exiles lab entrance 7410 | -9/Mines | Discovered new exit (range 5) 7455 | -9/Mines | A weapon hastily lodged in a ceiling crevice suddenly fell to the ground 7738 | -9/Mines | Learned location of 1 exit from Lower Caves 7740 | -9/Mines | Discovered new exit (range 7) 8001 | -9/Mines | Discovered new exit (range 7) 8162 | -9/Mines | Entered Exiles 8219 | -9/Exiles | Met 8R-AWN 8258 | -9/Exiles | Met EX-HEX 8349 | -9/Exiles | Met EX-DEC 8447 | -9/Exiles | Met EX-BIN 8501 | -9/Exiles | Aligned with FarCom system 8503 | -9/Exiles | Given EX-Vault access code 8557 | -9/Exiles | Opened EX-Vault 8576 | -9/Exiles | Found Firepult 8624 | -9/Exiles | Warned to stay clear of 0b10 Research branches 8777 | -9/Exiles | Discovered new exit (range 14) 8803 | -9/Exiles | Left Exiles lab with Firepult 8803 | -9/Exiles | Entered Mines 8974 | -8/Mines | Discovered new exit (range 15) 9638 | -8/Mines | Entered Materials 9638 | -8/Materials | Evolved 2 slots: Propulsion x1, Utility x1 10362 | -8/Materials | Repaired Adv. Treads 10572 | -8/Materials | Discovered new exit (range 13) 10641 | -8/Materials | Identified exit to Storage 10696 | -8/Materials | Central database locked down 11445 | -8/Materials | Discovered new exit (range 12) 12077 | -8/Materials | Discovered new exit (range 4) 12375 | -8/Materials | Entered Storage 12492 | -8/Storage | Assisted by bots powering up and referring to "LRC-V3" 12515 | -8/Storage | Identified exit to Factory 12600 | -8/Storage | Lost 5 allies 12667 | -8/Storage | Entered Factory 12667 | -7/Factory | Accompanied by 2 allies 12667 | -7/Factory | Evolved 2 slots: Propulsion x1, Utility x1 12866 | -7/Factory | Discovered new exit (range 9) 12998 | -7/Factory | Discovered new exit (range 9) 13595 | -7/Factory | Discovered new exit (range 14) 13881 | -7/Factory | Cargo convoy interrupted 14249 | -7/Factory | Manually triggered Chute Trap 14249 | -7/Factory | Sucked down chute 14249 | -7/Factory | Entered Waste 14249 | -7/Waste | The area was eerily silent 14261 | -7/Waste | Build established: Sprinter 14308 | -7/Waste | Discovered new exit (range 12) 14988 | -7/Waste | Entered Factory 15074 | -7/Factory | Discovered new exit (range 16) 15211 | -7/Factory | Identified exit to Lower Caves 15221 | -7/Factory | Identified exit to Factory 15368 | -7/Factory | Repaired Imp. Light Armor Plating 16077 | -7/Factory | Cargo convoy interrupted 16090 | -7/Factory | Found Prototype Processor 16090 | -7/Factory | Identified Exp. Signal Interpreter 16095 | -7/Factory | Found Prototype Hackware 16095 | -7/Factory | Identified Exp. System Shield 16194 | -7/Factory | Entered Lower Caves 16195 | -7/Lower Caves | Identified exit to Lower Caves 16318 | -7/Lower Caves | Learned 4 Factory zone layouts 16323 | -7/Lower Caves | Learned 8 Factory zone layouts 16333 | -7/Lower Caves | Entered another Lower Caves area 16336 | -7/Lower Caves | Discovered exit to Factory (range 6) 16356 | -7/Lower Caves | Encountered a Warlord checkpoint 16375 | -7/Lower Caves | Build established: Hacker-Sprinter 16418 | -7/Lower Caves | Learned Factory stockpile data 16426 | -7/Lower Caves | Discovered new exit (range 14) 16430 | -7/Lower Caves | Entered Zion 16442 | -7/Zion | Learned location of Extension (-6) 16444 | -7/Zion | System corruption cleaned by Quarantine Array 16470 | -7/Zion | Discovered new exit (range 16) 16524 | -7/Zion | Learned Factory terminal intel 16557 | -7/Zion | Learned location of Warlord (-5) 16626 | -7/Zion | Visited the Megawrench Repair Shop 16633 | -7/Zion | Megawrench repaired 10 parts 16663 | -7/Zion | Found Unknown Piercing Weapon 16663 | -7/Zion | Identified CR-A16's Pointy Stick 16687 | -7/Zion | Found Prototype Processor 16687 | -7/Zion | Identified Spectral Analyzer 16689 | -7/Zion | Found Prototype Processor 16689 | -7/Zion | Identified Exp. Terrain Scan Processor 16696 | -7/Zion | Found Prototype Processor 16696 | -7/Zion | Identified Exp. Armor Integrity Analyzer 16770 | -7/Zion | Entered Proximity Caves 16771 | -6/Proximity Caves | Learned Factory garrison access intel 16792 | -6/Proximity Caves | Spotted B-75 Beast 16953 | -6/Proximity Caves | Discovered exit to Factory (range 9) 16955 | -6/Proximity Caves | Entered Factory 16955 | -6/Factory | Evolved 2 slots: Propulsion x1, Utility x1 16956 | -6/Factory | Identified exit to Lower Caves 16957 | -6/Factory | Identified exit to Factory 16957 | -6/Factory | Identified exit to Extension 16959 | -6/Factory | Loaded intel: 28 terminal locations 16960 | -6/Factory | Loaded intel: 4 garrison access locations 17179 | -6/Factory | Repaired Imp. VTOL Module 17333 | -6/Factory | Discovered exit to Factory (range 8) 17402 | -6/Factory | Discovered exit to Extension (range 6) 17469 | -6/Factory | Garrison activated, responded to threat 17476 | -6/Factory | Allied Derelicts emerged from ambush trap array 17595 | -6/Factory | Lost 3 allies 17764 | -6/Factory | Discovered exit to Factory (range 12) 18206 | -6/Factory | Repaired Imp. VTOL Module 18264 | -6/Factory | Repaired Imp. Light Armor Plating 18350 | -6/Factory | Manually triggered Chute Trap 18350 | -6/Factory | Sucked down chute 18350 | -6/Factory | Entered Waste 18356 | -6/Waste | Spotted C-40 Crusher 18356 | -6/Waste | Spotted C-40 Crusher 18362 | -6/Waste | Spotted C-40 Crusher 18365 | -6/Waste | EMP discharged 18365 | -6/Waste | System corruption reached 10% 18368 | -6/Waste | Spotted C-40 Crusher 18370 | -6/Waste | 1 allies followed down the chute 18371 | -6/Waste | Spotted C-40 Crusher 18374 | -6/Waste | Spotted C-40 Crusher 18377 | -6/Waste | Discovered new exit (range 10) 18379 | -6/Waste | Entered Factory 19004 | -6/Factory | Cargo convoy interrupted 19196 | -6/Factory | Discovered exit to Factory (range 13) 19382 | -6/Factory | Entered Extension 19398 | -6/Extension | Rescued a captive Derelict 19411 | -6/Extension | Rescued A7 19460 | -6/Extension | Rescued a captive Derelict 19461 | -6/Extension | Rescued a captive Derelict 19566 | -6/Extension | Rescued a captive Derelict 19568 | -6/Extension | Rescued a captive Derelict 19572 | -6/Extension | Rescued a captive Derelict 19574 | -6/Extension | Rescued a captive Derelict 19612 | -6/Extension | Rescued a captive Derelict 19613 | -6/Extension | Rescued a captive Derelict 19776 | -6/Extension | Build established: Commander-Sprinter 19908 | -6/Extension | Spotted B-75 Beast 19918 | -6/Extension | Spotted B-75 Beast 19921 | -6/Extension | Rewired B-75 Beast 19942 | -6/Extension | Destroyed B-75 Beast 19968 | -6/Extension | Lost 3 allies 20039 | -6/Extension | Rescued a captive Derelict 20159 | -6/Extension | Rescued a captive Derelict 20161 | -6/Extension | Rescued a captive Derelict 20295 | -6/Extension | Discovered new exit (range 16) 20295 | -6/Extension | Discovered exit to Factory (range 15) 20432 | -6/Extension | First assault squad dispatched 20433 | -6/Extension | Entered Cetus 20433 | -6/Cetus | Accompanied by 11 allies (A7) 20438 | -6/Cetus | Acquired a Cetus Manufacturing Module code from A7 20442 | -6/Cetus | Spotted Cetus Guard 20442 | -6/Cetus | Spotted Cetus Guard 20449 | -6/Cetus | Spotted Cetus Guard 20451 | -6/Cetus | Spotted Cetus Guard 20458 | -6/Cetus | Allies destroyed Cetus Guard 20460 | -6/Cetus | Allies destroyed Cetus Guard 20465 | -6/Cetus | Allies destroyed Cetus Guard 20477 | -6/Cetus | Allies destroyed Cetus Guard 20491 | -6/Cetus | Started Cetus Manufacturing Module 20497 | -6/Cetus | Lost 8 allies 20516 | -6/Cetus | Manufactured an Enhanced Grunt 20530 | -6/Cetus | Escorted A7 to Cetus Mainframe 20541 | -6/Cetus | Manufactured an Enhanced Grunt 20566 | -6/Cetus | Manufactured an Enhanced Grunt 20591 | -6/Cetus | Manufactured an Enhanced Grunt 20616 | -6/Cetus | Manufactured an Enhanced Grunt 20631 | -6/Cetus | Discovered new exit (range 16) 20662 | -6/Cetus | Entered Archives 20662 | -6/Archives | Accompanied by 8 allies (A7) 20667 | -6/Archives | Received a hacking code to weaken MAIN.C 20979 | -6/Archives | Build established: Hacker-Sprinter 21791 | -6/Archives | Discovered new exit (range 15) 21847 | -6/Archives | Entered Hub_04(d) 21847 | -6/Hub_04(d) | Accompanied by 6 allies 21921 | -6/Hub_04(d) | Discovered exit to Factory (range 16) 21931 | -6/Hub_04(d) | Discovered exit to Factory (range 16) 22049 | -6/Hub_04(d) | Network Hub disabled 22087 | -6/Hub_04(d) | Lost 3 allies 22087 | -6/Hub_04(d) | Entered Factory 22087 | -5/Factory | Evolved 2 slots: Power x1, Propulsion x1 22113 | -5/Factory | Discovered new exit (range 6) 22471 | -5/Factory | Identified exit to Upper Caves 22652 | -5/Factory | Fabricated Mni. Smartbomb Launcher? 22916 | -5/Factory | Repaired Imp. VTOL Module 23115 | -5/Factory | Discovered new exit (range 8) 23162 | -5/Factory | Repaired Imp. VTOL Module 23193 | -5/Factory | Repaired Imp. VTOL Module 23283 | -5/Factory | Repaired Imp. Utility Shielding 23432 | -5/Factory | Fabricated Cld. VTOL Module (x1) 23566 | -5/Factory | Repaired Imp. VTOL Module 23638 | -5/Factory | Sucked down chute 23638 | -5/Factory | Entered Waste 23640 | -5/Waste | Spotted C-40 Crusher 23645 | -5/Waste | Spotted C-40 Crusher 23646 | -5/Waste | Discovered new exit (range 15) 23646 | -5/Waste | Spotted C-40 Crusher 23646 | -5/Waste | Spotted C-40 Crusher 23647 | -5/Waste | Spotted C-40 Crusher 23648 | -5/Waste | Entered Factory 23758 | -5/Factory | Fabricated Cld. VTOL Module? 23882 | -5/Factory | Discovered exit to Upper Caves (range 9) 24013 | -5/Factory | Fabricated Cld. VTOL Module (x1) 24350 | -5/Factory | Discovered new exit (range 14) 24452 | -5/Factory | Fabricated Exp. Utility Shielding (x1) 24581 | -5/Factory | Discovered new exit (range 5) 24723 | -5/Factory | Entered Upper Caves 24723 | -5/Upper Caves | Accompanied by 2 allies 24764 | -5/Upper Caves | Encountered a Warlord checkpoint 24784 | -5/Upper Caves | Spotted B-75 Beast 24808 | -5/Upper Caves | Attracted the attention of an 0b10 outpost 24829 | -5/Upper Caves | Learned Factory interactive machine intel 24846 | -5/Upper Caves | Lost 3 allies 24860 | -5/Upper Caves | Discovered new exit (range 10) 24874 | -5/Upper Caves | Entered another Upper Caves area 24880 | -5/Upper Caves | Discovered new exit (range 11) 24937 | -5/Upper Caves | Discovered new exit (range 8) 24940 | -5/Upper Caves | Entered Warlord 24950 | -5/Warlord | Discovered new exit (range 8) 25030 | -5/Warlord | Received a Watcher feed algorithm from an ecstatic Tinkerer 25055 | -5/Warlord | Visited the Vortex Lab 25065 | -5/Warlord | Met Warlord 25076 | -5/Warlord | Found Prototype Device 25076 | -5/Warlord | Identified Exp. Phase Shifter 25078 | -5/Warlord | Warlord's base attacked by MAIN.C 25097 | -5/Warlord | Found Exp. Core Analyzer 25100 | -5/Warlord | Found Prototype Reactor 25100 | -5/Warlord | Identified Vortex Chain Reactor 25297 | -5/Warlord | Lost 5 allies 25394 | -5/Warlord | P-70 Sage assimilated allied JI-AJK(g) 25402 | -5/Warlord | Destroyed Striker 25428 | -5/Warlord | Warlord forces counterattacked 25437 | -5/Warlord | Build established: Hacker-Mutant 25538 | -5/Warlord | Opened side exit 25578 | -5/Warlord | Spotted Executioner 25583 | -5/Warlord | Entered Proximity Caves 25727 | -4/Proximity Caves | Spotted B-86 Titan 25738 | -4/Proximity Caves | Spotter reported a threat 25762 | -4/Proximity Caves | Discovered new exit (range 8) 25763 | -4/Proximity Caves | Entered Factory 25763 | -4/Factory | Evolved 2 slots: Utility x2 25764 | -4/Factory | Loaded intel: 52 interactive machine locations 25765 | -4/Factory | Build established: Hacker-Sprinter 25861 | -4/Factory | Fabricated Exp. Utility Shielding (x1) 25866 | -4/Factory | Identified exit to Upper Caves 25866 | -4/Factory | Identified exit to Armory 26505 | -4/Factory | Repaired Cld. VTOL Module 26550 | -4/Factory | Repaired Cld. Nuclear Pulse Thruster 26834 | -4/Factory | Central database locked down 26835 | -4/Factory | Discovered new exit (range 8) 26995 | -4/Factory | Repaired Imp. Light Armor Plating 27153 | -4/Factory | Repaired Broken Cld. Nuclear Pulse Thruster? 27299 | -4/Factory | Fabricated Cld. Nuclear Pulse Thruster? 27332 | -4/Factory | Discovered new exit (range 16) 27343 | -4/Factory | Fabricated Imp. Light Armor Plating? 27512 | -4/Factory | Fabricated Exp. Terrain Scan Processor? 27604 | -4/Factory | Build established: Hacker-Scout 28174 | -4/Factory | Build established: Hacker-Sprinter 28281 | -4/Factory | Manually triggered Chute Trap 28281 | -4/Factory | Sucked down chute 28281 | -4/Factory | Entered Waste 28289 | -4/Waste | Spotted C-40 Crusher 28293 | -4/Waste | Spotted C-40 Crusher 28296 | -4/Waste | 2 allies followed down the chute 28325 | -4/Waste | Spotted C-40 Crusher 28339 | -4/Waste | Spotted C-40 Crusher 28342 | -4/Waste | Spotted C-40 Crusher 28344 | -4/Waste | Discovered new exit (range 15) 28346 | -4/Waste | Entered Factory 28367 | -4/Factory | Spotted B-86 Titan 28573 | -4/Factory | Fabricated Lrn. Terrain Scanner (x1) 28650 | -4/Factory | Fabricated Cld. Nuclear Pulse Thruster? 28942 | -4/Factory | Discovered new exit (range 7) 29050 | -4/Factory | Entered Upper Caves 29267 | -4/Upper Caves | Attacked by a delusional Derelict stockpiling parts 29370 | -4/Upper Caves | Discovered new exit (range 13) 29385 | -4/Upper Caves | Entered another Upper Caves area 29414 | -4/Upper Caves | Learned location of 1 exit from Research 29455 | -4/Upper Caves | Discovered new exit (range 23) 29458 | -4/Upper Caves | Entered Zhirov 29460 | -4/Zhirov | Discovered new exit (range 3) 29463 | -4/Zhirov | Met Zhirov 29466 | -4/Zhirov | Learned location of Quarantine (-3) 29466 | -4/Zhirov | Learned location of Testing (-2) 29466 | -4/Zhirov | Learned location of Command (-1) 29467 | -4/Zhirov | Zhirov requested help retrieving the SGEMP Prototype 29470 | -4/Zhirov | Found Alien Artifact 29470 | -4/Zhirov | Identified Integrated Reactor 29470 | -4/Zhirov | Installed Integrated Reactor, increased core energy generation (+10) 29519 | -4/Zhirov | Found Alien Artifact 29535 | -4/Zhirov | Entered Proximity Caves 29617 | -3/Proximity Caves | Discovered new exit (range 7) 29618 | -3/Proximity Caves | Entered Research 29618 | -3/Research | Evolved 2 slots: Utility x2 29619 | -3/Research | Identified exit to Research 29641 | -3/Research | Identified Transdimensional Reconstructor 29911 | -3/Research | Identified exit to Quarantine 30035 | -3/Research | Spotted B-86 Titan 30070 | -3/Research | Repaired Exp. Utility Shielding 30077 | -3/Research | Spotted B-86 Titan 30079 | -3/Research | Spotted B-86 Titan 30164 | -3/Research | Found Exp. EM Disruption Field 30179 | -3/Research | Entered Quarantine 30180 | -3/Quarantine | Maximum security lockdown engaged 30188 | -3/Quarantine | Found Alien Artifact 30188 | -3/Quarantine | Identified Phase Redirector 30208 | -3/Quarantine | Discovered exit to Research (range 22) 30221 | -3/Quarantine | Spotted Fortress 30231 | -3/Quarantine | Discovered new exit (range 5) 30232 | -3/Quarantine | Entered Section 7 30233 | -3/Section 7 | Maximum security lockdown engaged 30254 | -3/Section 7 | Found Alien Artifact 30254 | -3/Section 7 | Identified Spacefold Activator 30280 | -3/Section 7 | Spotted S7 Guard 30299 | -3/Section 7 | Found Alien Artifact 30299 | -3/Section 7 | Identified Core Membrane 30299 | -3/Section 7 | Installed Core Membrane, gained immunity to corruption 30319 | -3/Section 7 | Discovered exit to Research (range 15) 30322 | -3/Section 7 | Spotted S7 Guard 30325 | -3/Section 7 | Found Alien Artifact 30325 | -3/Section 7 | Identified Navigation Efficiency Matrix 30325 | -3/Section 7 | Installed Navigation Efficiency Matrix, process failed with unexpected side effects 30336 | -3/Section 7 | Spotted Alpha 7 30337 | -3/Section 7 | Spotted Alpha 7 30342 | -3/Section 7 | Spotted B-99 Colossus 30361 | -3/Section 7 | Found Alien Artifact 30361 | -3/Section 7 | Identified Core Reset Matrix 30361 | -3/Section 7 | Used Core Reset Matrix 30365 | -3/Section 7 | Sensed 17 artifacts in vicinity 30378 | -3/Section 7 | Found LRC Storage 30378 | -3/Section 7 | Installed LRC Storage, increased inventory capacity (+2) 30388 | -3/Section 7 | Found Integrated Reactor 30388 | -3/Section 7 | Installed Integrated Reactor, increased core energy generation (+10) 30424 | -3/Section 7 | Warped through subspace 30431 | -3/Section 7 | Spotted Executioner 30432 | -3/Section 7 | Spotted Executioner 30441 | -3/Section 7 | Found Integrated Reactor 30454 | -3/Section 7 | Found Integrated Mediator 30493 | -3/Section 7 | Discovered exit to Research (range 23) 30495 | -3/Section 7 | Found Integrated Dissipator 30499 | -3/Section 7 | Core integrity fell below 50% 30504 | -3/Section 7 | Spotted B-86 Titan 30504 | -3/Section 7 | Spotted S7 Guard 30508 | -3/Section 7 | Found Core Physics Calibrator 30525 | -3/Section 7 | Found Microwarp Drive 30528 | -3/Section 7 | Lost 3 parts (2n1u) 30556 | -3/Section 7 | Entered Research 30556 | -2/Research | Warlord forces began assault on 0b10 30556 | -2/Research | Evolved 2 slots: Power x1, Utility x1 30556 | -2/Research | Installed Integrated Dissipator, increased core heat dissipation (+20) 30557 | -2/Research | Installed Integrated Reactor, increased core energy generation (+10) 30558 | -2/Research | Installed Integrated Mediator, increased core attachment efficiency 30604 | -2/Research | Repaired Exp. Utility Shielding 30616 | -2/Research | Met up with Warlord 30645 | -2/Research | Discovered new exit (range 22) 30666 | -2/Research | Research machine network offline 30801 | -2/Research | Discovered new exit (range 15) 30845 | -2/Research | Build established: Alien-Scout 30890 | -2/Research | Spotted Executioner 30981 | -2/Research | Borebot progress halted 31006 | -2/Research | Found Prototype Device 31006 | -2/Research | Identified Exp. Thermal Defense Suite 31024 | -2/Research | Found Prototype Device 31024 | -2/Research | Identified Adv. Kinecellerator 31081 | -2/Research | Lost 4 allies 31088 | -2/Research | Spotted Executioner 31113 | -2/Research | Found Exp. Core Analyzer 31124 | -2/Research | Found Adv. Kinecellerator 31132 | -2/Research | Borebot progress halted 31151 | -2/Research | Spotted Striker 31163 | -2/Research | Identified exit to Access 31164 | -2/Research | Borebot progress halted 31166 | -2/Research | Identified exit to Testing 31170 | -2/Research | Found Prototype Processor 31170 | -2/Research | Identified Exp. Targeting Computer 31408 | -2/Research | Spotted Striker 31412 | -2/Research | Spotted Striker 31412 | -2/Research | Spotted Executioner 31413 | -2/Research | Spotted Striker 31428 | -2/Research | Destroyed KL-UXX(H) 31436 | -2/Research | Destroyed Striker 31455 | -2/Research | Spotted Striker 31460 | -2/Research | Destroyed Striker 31466 | -2/Research | Destroyed Striker 31491 | -2/Research | Lost 9 allies 31510 | -2/Research | Spotted Striker 31514 | -2/Research | Destroyed Striker 31541 | -2/Research | Found Exp. Targeting Computer 31587 | -2/Research | Spotted B-90 Cyclops 31595 | -2/Research | Destroyed B-90 Cyclops 31635 | -2/Research | Discovered exit to Access (range 21) 31653 | -2/Research | Spotted Executioner 31693 | -2/Research | Discovered exit to Testing (range 23) 31720 | -2/Research | Found Prototype Device 31720 | -2/Research | Identified Exp. ECM Suite 31752 | -2/Research | Found Prototype Device 31752 | -2/Research | Identified Exp. Transmission Jammer 31853 | -2/Research | Spotted Striker 31861 | -2/Research | Spotted Striker 31904 | -2/Research | High security lockdown imminent 31915 | -2/Research | Lost 8 allies 31973 | -2/Research | Found Unknown Device 31973 | -2/Research | Identified Heavy Servo Lattice 31984 | -2/Research | High security lockdown engaged 32087 | -2/Research | Entered Testing 32088 | -2/Testing | Maximum security lockdown engaged 32123 | -2/Testing | Found Prototype Device 32123 | -2/Testing | Identified Exp. Actuator Array 32173 | -2/Testing | Discovered exit to Access (range 21) 32177 | -2/Testing | Found Prototype Hackware 32190 | -2/Testing | Spotted Superbehemoth 32195 | -2/Testing | Found Prototype Hackware 32195 | -2/Testing | Identified Ghost Barrier 32263 | -2/Testing | Entered Access 32263 | -1/Access | Evolved 2 slots (calibrated): -Power x1, Propulsion x1, Utility x2 32270 | -1/Access | Identified Exp. Hacking Suite 32290 | -1/Access | Identified exit to Command 32292 | -1/Access | Lost 3 parts (3u) 32450 | -1/Access | Found Unknown Protection 32450 | -1/Access | Identified Powered Armor 32494 | -1/Access | Discovered new exit (range 24) 32513 | -1/Access | First assault squad dispatched 32567 | -1/Access | Entered Command 32608 | -1/Command | Spotted B-99 Colossus 32771 | -1/Command | Disengaged cave seal 32783 | -1/Command | Welcomed Warlord to Command 32794 | -1/Command | Core integrity fell below 50% 32860 | -1/Command | Lost 5 allies 32863 | -1/Command | Build established: Alien-Sprinter 32977 | -1/Command | Spotted M Guard 32977 | -1/Command | Spotted M Guard 32977 | -1/Command | Spotted Combat Programmer 32977 | -1/Command | Spotted Combat Programmer 33201 | -1/Command | Emitted hypermatrix ping 33206 | -1/Command | Assembled emerged from beneath the floor 33272 | -1/Command | Destroyed M Guard 33274 | -1/Command | All MAIN.C guards destroyed 33295 | -1/Command | Warlord commented on Warlord statues 33302 | -1/Command | Lost 11 allies 33388 | -1/Command | Found Unknown Protection 33388 | -1/Command | Identified Hvy. Reactive Plating 33428 | -1/Command | Assembled emerged from beneath the floor 33429 | -1/Command | Assembled emerged from beneath the floor 33530 | -1/Command | Met MAIN.C 33532 | -1/Command | 0b10 Conduit disabled 33553 | -1/Command | Destroyed MAIN.C Shell 33555 | -1/Command | MAIN.C activated Command garrisons 33583 | -1/Command | Lost 4 parts (1p2n1u) 33615 | -1/Command | Core integrity fell below 20% 33629 | -1/Command | Warlord destroyed during the assault 33633 | -1/Command | Destroyed by S-43 Plague with Heavy Machine Gun Last Messages --------------- 33627_ G-73 Enforcer knocked back. 33627_ Slug penetrates MAIN.C. 33627_ Slug penetrates Reinforced Barrier. 33628_ Slug penetrates Warlord. 33629_ Warlord: "IMPOSS00101101 01101001 01010111 01001001 01001100 01001100 01110010 01100101 01110100 01110101 01110010 01101110" 33629_ Warlord destroyed. 33629_ S-43 Plague destroyed. 33629_ Rnf. Fission Core destroyed. 33629_ Helical Railgun destroyed. 33629_ Critical hit (Blast). 33629_ P-80 Master resets P-80 Master, system corruption cleaned. 33630_ Microwarped (distance 18). 33631_ Slug penetrates 0b10 Conduit. 33631_ Spacefolded through 0b10 Conduit. 33632_ Core Membrane filtered system corruption (1). 33632_ Slug penetrates 0b10 Conduit. 33632_ Penetrated by Slug. 33632_ Cld. Impulse Thruster destroyed. 33632_ Dropped Lrg. Storage Unit. Map ----- +----------------------------------------------------+ | ?????????????????????????????????????????????????? | | ?????????????????????????????????????????????????? | | ?????????????????????????????????????????????????? | | ?????????????????????????????????????????????????? | | ?????????????????????????????????????????????????? | | ?????????????????????????????????????????????????? | | ??????????????????????#######################????? | | ??????????????????????# #????? | | ??????????????????????#" % % % #????? | | ??????????????????????#" % ###### | | ??????????????????????# [ / | | ??????????????????????#" [% %* / | | ??????????????????????#"" M %*=p[[ / % | | ??????????????????????# =ssph ###### | | ??????????????????????# % *h hg #????? | | ??????????????????????# % ]!!=h[p #????? | | ??????????????????????# !%gpxx p "#????? | | ??????????????????????# " %!!!p g """"#????? | | ??????????????????????#"" s"""""""#????? | | ??????????????????????# % """"""""#????? | | ??????????????????????# " " " #????? | | ??????????????????????# " " " #????? | | ??????????????????????" " " """" " #????? | | ??????????????????????" % " " """" #????? | | ??????????????????????" " " " #????? | | ??????????????????????# @! " """ " #????? | | ??????????????????????# /!!" " """"""""#????? | | ??????????????????????# [ """ " " " #????? | | ??????????????????????################??#####????? | | ?????????????????????????????????????????????????? | | ?????????????????????????????????????????????????? | | ?????????????????????????????????????????????????? | | ??????????H??????????????????????????????????????? | | ?????????????????????????????????????????????????? | | ?????????????????????????????????????????????????? | | ?????????????????????????????????????????????????? | | ?????????????????????????????????????????????????? | | ?????????????????????????????????????????????????? | | ?????????????????????????????????????????????????? | | ?????????????????????????????????????????????????? | | ?????????????????????????????????????????????????? | | ?????????????????????????????????????????????????? | | ?????????????????????????????????????????????????? | | ?????????????????????????????????????????????????? | | ?????????????????????????????????????????????????? | | ?????????????????????????????????????????????????? | | ?????????????????????????????????????????????????? | | ?????????????????????????????????????????????????? | | ?????????????????????????????????????????????????? | | ?????????????????????????????????????????????????? | +----------------------------------------------------+ Best States ------------- Heat Dissipation 134 Coolant Potential 100 Energy Generation 83 Energy Capacity 380 Matter Stores 300 Matter Capacity 300 Sight Range 24 Robot Scan Range 18 Terrain Scan Range 24 Terrain Scan Density 1010 ECM Strength 1 Jamming Range 22 Cloak Strength 4 Power Amplification 20 Additional Mass Support 16 Base Temperature (-) 200 Armor Coverage 600 Resistance: KI 40 Utility Shielding 90 Point Defense Rating 480 Phase Shifting 20 Evasion (%) 86 Targeting Accuracy 28 Melee Accuracy 5 Core Analysis 12 Recoil Reduction 4 Matter Filtering 30 Particle Charging 25 Offensive Hacking 42 Defensive Hacking 36 Authchip Count 4 Trap Extractor Capacity 8 Item Schematics ----------------- None Robot Schematics ------------------ None Fabricated ------------ Mni. Smartbomb Launcher | x1 | -5/Factory Cld. VTOL Module | x1 | -5/Factory Cld. VTOL Module | x1 | -5/Factory Cld. VTOL Module | x1 | -5/Factory Exp. Utility Shielding | x1 | -5/Factory Exp. Utility Shielding | x1 | -4/Factory Cld. Nuclear Pulse Thruster | x1 | -4/Factory Imp. Light Armor Plating | x2 | -4/Factory Exp. Terrain Scan Processor | x1 | -4/Factory Lrn. Terrain Scanner | x1 | -4/Factory | Authchip Cld. Nuclear Pulse Thruster | x1 | -4/Factory | Authchip Alien Tech Used ----------------- Integrated Reactor Phase Redirector Spacefold Activator Core Membrane Navigation Efficiency Matrix Core Reset Matrix LRC Storage Transdimensional Reconstructor Integrated Dissipator Integrated Mediator Microwarp Drive Core Physics Calibrator Achievements -------------- Most Wanted Supersonic Challenges ------------ None Game ------ Seed HeartTractorCharger Manual? 0 Play Time 17:30:06 Cumulative 490.3 hours Start 2024.06.18 @ 11:53:45 End 2024.06.27 @ 17:33:04 Sessions 42 Manual Loads 0 Difficulty Rogue Special Mode None Game No. 143 Rogue 104 Adventurer 0 Explorer 39 Win Type - Total 13 Types 11/1/1/0/0/0/0/0/0 Lore% 77 Gallery% 83 Achievement% 71 Wizard Run 0 Options --------- Layout 0 ASCII 1 Keyboard 1 Movement Arrows Keybinds 0 Fullscreen 2 Font 36/Smallcaps Map View 76x50 Zoom Use 0% Tactical HUD 1 Map Filters NONE Filters NONE Steam 1 RUN: 46ace078-0fbb-4cca-9d15-4e4685fa2308